Workbook

Sheet Introdução
C8: SGCIE - Sistema de Gestão dos Consumos Intensivos de Energia FICHA DE COMPROVAÇÃO DE ECONOMIAS DA SOLUÇÃO PROPOSTA Sistemas de Quantificação, Monitorização Contínua e Gestão de Energia
H18: (TEXTO)

Sheet Conversor (hidden)
A1: Combustível | B1: Unidades | C1: PCI (MJ/kg) | D1: PCI (kWh/kg) | E1: PCI (tep/t) | F1: FE (kgCO2e/GJ) | G1: FE (kgCO2e/tep) | H1: PCI em número ou intervalo?
A2: Selecione | D2: 3600
A3: Antracite | B3: (t) | C3: 26.7 | D3: =+C3*1000/$D$2 -> 7.416666667 | E3: 0.638 | F3: 98.2 | G3: 4111.4 | H3: Número
A4: Betume / Alcatrão | B4: (t) | C4: 40.2 | D4: =+C4*1000/$D$2 -> 11.16666667 | E4: 0.96 | F4: 80.6 | G4: 3374.6 | H4: Número
A5: Biogasolina e Biodiesel | B5: (t) | C5: 27 | D5: 7.5 | E5: 0.645 | F5: 0 | G5: 0 | H5: Número
A6: Briquetes de lignite | B6: (t) | C6: 20 | D6: 5.555555556 | E6: 0.478 | F6: 101.1 | G6: 4232.9 | H6: Número
A7: Briquetes de turfa | B7: (t) | C7: 16 - 16,8 | D7: 4,44-4,67 | E7: 0,382 - 0,401 | F7: 105.9 | G7: 4433.8 | H7: Intervalo
A8: Carvão betuminoso | B8: (t) | C8: 25.8 | D8: 7.166666667 | E8: 0.616 | F8: 94.5 | G8: 3956.5 | H8: Número
A9: Carvão sub-betuminoso | B9: (t) | C9: 18.9 | D9: 5.25 | E9: 0.451 | F9: 96 | G9: 4019.3 | H9: Número
A10: Carvão vegetal | B10: (t) | C10: 29.5 | D10: 8.194444444 | E10: 0.705 | F10: 0 | G10: 0 | H10: Número
A11: Combustível para motor (gasolina) | B11: (t) | C11: 44 - 45 | D11: 12,22-12,50 | E11: 1,051 - 1,075 | F11: 69.2 | G11: 2897.3 | H11: Intervalo
A12: Coque de Carvão | B12: (t) | C12: 28.2 | D12: 7.833333333 | E12: 0.674 | F12: 94.5 | G12: 3956.5 | H12: Número
A13: Coque de forno / lignite ou gás | B13: (t) | C13: 28,2 - 28,5 | D13: 7,83-7,92 | E13: 0,674 - 0,681 | F13: 107 | G13: 4479.9 | H13: Intervalo
A14: Coque de Petróleo | B14: (t) | C14: 31 - 32,5 | D14: 8,67-9,03 | E14: 0,740 - 0,776 | F14: 97.5 | G14: 4082.1 | H14: Intervalo
A15: Energia elétrica | B15: (kWh) | D15: 1 | E15: 0.000215 | G15: 2186 | H15: Número
A16: Etano | B16: (t) | C16: 46.4 | D16: 12.88888889 | E16: 1.108 | F16: 61.6 | G16: 2579.1 | H16: Número
A17: Fuelóleo pesado | B17: (t) | C17: 40 - 40,4 | D17: 11,11-11,22 | E17: 0,955 - 0,965 | F17: 77.3 | G17: 3236.4 | H17: Intervalo
A18: Fuelóleo | B18: (t) | C18: 41.2 | D18: 11.44444444 | E18: 0.984 | F18: 77.3 | G18: 3236.4 | H18: Número
A19: Gás de Alto Forno | B19: (t) | C19: 2.5 | D19: 0.6944444444 | E19: 0.06 | F19: 259.4 | G19: 10860.6 | H19: Número
A20: Gás de coqueria e de fábricas de Gás | B20: (t) | C20: 38.7 | D20: 10.75 | E20: 0.924 | F20: 44.7 | G20: 1871.5 | H20: Número
A21: Gás de forno de acearia a oxigénio | B21: (t) | C21: 7.1 | D21: 1.972222222 | E21: 0.17 | F21: 171.8 | G21: 7192.9 | H21: Número
A22: Gás de petróleo liquefeito | B22: (t) | C22: 46 - 47,3 | D22: 12,78-13,14 | E22: 1,099 - 1,130 | F22: 63 | G22: 2637.7 | H22: Intervalo
A23: Gás de Refinaria | B23: (t) | C23: 49.5 | D23: 13.75 | E23: 1.182 | F23: 51.3 | G23: 2147.8 | H23: Número
A24: Gás natural (superior a 93% de metano) | B24: (t) | C24: 47,2 - 48 | D24: 13,11-13,33 | E24: 1,127 - 1,146 | F24: 56.1 | G24: 2348.8 | H24: Intervalo
A25: Gás natural liquefeito | B25: (t) | C25: 44,2 - 45,2 | D25: 12,28-12,56 | E25: 1,056 - 1,080 | F25: 64.1 | G25: 2683.7 | H25: Intervalo
A26: Gás natural | B26: (t) | C26: 45.1 | D26: 12.52777778 | E26: 1.077 | F26: 64.1 | G26: 2683.7 | H26: Número
A27: Gases de aterro/ lamas de depuração e outros biogases | B27: (t) | C27: 50.4 | D27: 14 | E27: 1.204 | F27: 0 | G27: 0 | H27: Número
A28: Gasóleo / Diesel | B28: (t) | C28: 42,3 - 43,3 | D28: 11,75-12,03 | E28: 1,010 - 1,034 | F28: 74 | G28: 3098.2 | H28: Intervalo
A29: Hulha | B29: (t) | C29: 17,2 - 30,7 | D29: 4,78-8,53 | E29: 0,411 - 0,733 | F29: 97.5 | G29: 4082.1 | H29: Intervalo
A30: Lignite castanha | B30: (t) | C30: 5,6 - 10,5 | D30: 1,56-2,92 | E30: 0,134 - 0,251 | F30: 101.1 | G30: 4232.9 | H30: Intervalo
A31: Lignite negra | B31: (t) | C31: 10-21 | D31: 2,78-5,83 | E31: 0,239 - 0,502 | F31: 101.1 | G31: 4232.9 | H31: Intervalo
A32: Lubrificantes, ceras parafínicas e outros produtos Petrolíferos | B32: (t) | C32: 40.2 | D32: 11.16666667 | E32: 0.96 | F32: 73.3 | G32: 3068.9 | H32: Número
A33: Madeira / resíduos de Madeira | B33: (t) | C33: 13,8 - 15,6 | D33: 3,83-4,33 | E33: 0,330 - 0,373 | F33: 0 | G33: 0 | H33: Intervalo
A34: Matérias-primas para refinaria | B34: (t) | C34: 43 | D34: 11.94444444 | E34: 1.027 | F34: 73.3 | G34: 3068.9 | H34: Número
A35: Metano | B35: (t) | C35: 50 | D35: =+C35*1000/$D$2 -> 13.88888889 | E35: 1.194 | F35: 54.9 | G35: 2298.6 | H35: Número
A36: Monóxido de Carbono | B36: (t) | C36: 10.1 | D36: 2.805555556 | E36: 0.241 | F36: 155.2 | G36: 6497.9 | H36: Número
A37: Nafta química / Condensados de gasolina | B37: (t) | C37: 44.5 | D37: 12.36111111 | E37: 1.063 | F37: 73.3 | G37: 3068.9 | H37: Número
A38: Óleo de xisto | B38: (t) | C38: 38.1 | D38: 10.58333333 | E38: 0.91 | F38: 73.3 | G38: 3068.9 | H38: Número
A39: Óleos usados | B39: (t) | C39: 40.2 | D39: 11.16666667 | E39: 0.96 | F39: 73.3 | G39: 3068.9 | H39: Número
A40: Orimulsão | B40: (t) | C40: 27.5 | D40: 7.638888889 | E40: 0.657 | F40: 76.9 | G40: 3219.6 | H40: Número
A41: Outra | H41: Número
A42: Outra biomassa primária sólida | B42: (t) | C42: 11.6 | D42: 3.222222222 | E42: 0.277 | F42: 0 | G42: 0 | H42: Número
A43: Outros biocombustíveis Líquidos | B43: (t) | C43: 27.4 | D43: 7.611111111 | E43: 0.654 | F43: 0 | G43: 0 | H43: Número
A44: Peletes / briquetes de madeira | B44: (t) | C44: 16.8 | D44: 4.666666667 | E44: 0.401 | F44: 0 | G44: 0 | H44: Número
A45: Petróleo Bruto | B45: (t) | C45: 42.3 | D45: 11.75 | E45: 1.01 | F45: 73.3 | G45: 3068.9 | H45: Número
A46: Querosene | B46: (t) | C46: 43.8 | D46: 12.16666667 | E46: 1.046 | F46: 71.8 | G46: 3006.1 | H46: Número
A47: Resíduos Industriais | B47: (t) | C47: 7,4 - 10,7 | D47: 2,06-2,97 | E47: 0,177 - 0,256 | F47: 142.9 | G47: 5982.9 | H47: Intervalo
A48: Turfa | B48: (t) | C48: 7,8 - 13,8 | D48: 2,17-3,83 | E48: 0,186 - 0,330 | F48: 105.9 | G48: 4433.8 | H48: Intervalo
A49: Xisto betuminoso | B49: (t) | C49: 8 - 9 | D49: 12752.22222 | E49: 0,191 - 0,215 | F49: 106.6 | G49: 4463.1 | H49: Intervalo

Sheet Folha1 (hidden)
B13: Selecione
B14: 1
B15: 2
B16: 3
B17: 4
B18: 5
B19: 6
B20: 7

Sheet Economias
B1: SISTEMAS DE QUANTIFICAÇÃO, MONITORIZAÇÃO CONTÍNUA E GESTÃO DE ENERGIA
B5: Quantidade de formas de energia a serem influenciadas por esta ação | E5: Selecione
B7: # 1 | C7: SITUAÇÃO ATUAL | D7: Forma de energia usada | H7: FORMAÇÃO E SENSIBILIZAÇÃO | K7: SITUAÇÃO ATUAL | L7: SITUAÇÃO FUTURA | M7: ECONOMIAS
D8: =IF(E7="Energia elétrica","Utilização anual de "&$E$7&" (kWh/ano)","Utilização anual de "&$E$7&" (t/ano)") -> Utilização anual de (t/ano)
D9: ="Custo anual de "&$E$7&" (€/ano)" -> Custo anual de (€/ano) | F9: Fatores de conversão | H9: Energia primária anual (tep/ano) | K9: =+E107 -> 0 | L9: =+E111 -> 0 | M9: =IFERROR((K9-L9),"") -> 0 | N9: =IFERROR((M9/K9),"") -> 
D10: =+IF(E7="Energia Elétrica","Fator de conversão para tep (tep/kWh)","Fator de conversão para tep (tep/t)") -> Fator de conversão para tep (tep/t) | F10: =IF(G10="Intervalo","Escolher o fator entre: "&VLOOKUP($E$7,Conversor!$A$3:$E$49,5,FALSE)&"",VLOOKUP($E$7,Conversor!$A$3:$E$49,5,FALSE)) ->  | G10: =+VLOOKUP($E7,Conversor!$A$3:$H$49,8) ->  | H10: Emissão de CO2e anual (t CO2e/ano) | K10: =+E108 -> 0 | L10: =+E113 -> 0 | M10: =IFERROR(K10-L10,"") -> 0
D11: Fator de conversão para CO2e (kg CO2e/tep) | F11: =VLOOKUP($E$7,Conversor!$A$3:$G$49,7,FALSE) ->  | H11: Custo energético anual (€/ano) | K11: =+E106 -> 0 | L11: =+E112 -> 0 | M11: 0
D12: ="Utilização anual de "&$E$7&" (tep/ano)" -> Utilização anual de (tep/ano) | E12: =+E8*E10 -> 0
D13: Emissão anual de CO2e (t CO2e/ano) | E13: =(E11*E12)/1000 -> 0
C14: SITUAÇÃO FUTURA | D14: Economia anual de energia (%) | F14: =IF(E14>2,"São aceitáveis economias de energia até 2%.","") ->  | H14: =+IF(E14>2,"⚠","") -> 
D15: Utilização anual de energia primária (tep/ano) | E15: =+E12*((100-E14)/100) -> 0
D16: Custo anual de energia (€/ano) | E16: =+E9*((100-E14)/100) -> 0
D17: Emissão anual de CO2e (t CO2e/ano) | E17: =+E13*((100-E14)/100) -> 0
C18: ECONOMIAS | D18: Economia anual de energia primária (tep/ano) | E18: =+E12-E15 -> 0
D19: Economia anual de custo (€/ano) | E19: =+E9-E16 -> 0
D20: Emissão anual de CO2e (t CO2e/ano) | E20: =+E13-E17 -> 0
B21: # 2 | C21: SITUAÇÃO ATUAL | D21: Forma de energia usada
D22: =IF(E21="Energia elétrica","Utilização anual de "&$E$21&" (kWh/ano)","Utilização anual de "&$E$21&" (t/ano)") -> Utilização anual de (t/ano)
D23: ="Custo anual de "&$E$21&" (€/ano)" -> Custo anual de (€/ano) | F23: Fatores de conversão
D24: =+IF(E21="Energia Elétrica","Fator de conversão para tep (tep/kWh)","Fator de conversão para tep (tep/t)") -> Fator de conversão para tep (tep/t) | F24: =IF(G24="Intervalo","Escolher o fator entre: "&VLOOKUP($E$21,Conversor!$A$3:$E$49,5,FALSE)&"",VLOOKUP($E$21,Conversor!$A$3:$E$49,5,FALSE)) ->  | G24: =+VLOOKUP($E21,Conversor!$A$3:$H$49,8) -> 
D25: Fator de conversão para CO2e (kg CO2e/tep) | F25: =VLOOKUP($E$21,Conversor!$A$3:$G$49,7,FALSE) -> 
D26: ="Utilização anual de "&$E$21&" (tep/ano)" -> Utilização anual de (tep/ano) | E26: =+E22*E24 -> 0
D27: Emissão anual de CO2e (t CO2e/ano) | E27: =(E25*E26)/1000 -> 0
C28: SITUAÇÃO FUTURA | D28: Economia anual de energia (%) | F28: =IF(E28>2,"São aceitáveis economias de energia até 2%.","") ->  | H28: =+IF(E28>2,"⚠","") -> 
D29: Utilização anual de energia primária (tep/ano) | E29: =+E26*((100-E28)/100) -> 0
D30: Custo anual de energia (€/ano) | E30: =+E23*((100-E28)/100) -> 0
D31: Emissão anual de CO2e (t CO2e/ano) | E31: =+E27*((100-E28)/100) -> 0
C32: ECONOMIAS | D32: Economia anual de energia primária (tep/ano) | E32: =+E26-E29 -> 0
D33: Economia anual de custo (€/ano) | E33: =+E23-E30 -> 0
D34: Emissão anual de CO2e (t CO2e/ano) | E34: =+E27-E31 -> 0
B35: # 3 | C35: SITUAÇÃO ATUAL | D35: Forma de energia usada
D36: =IF(E35="Energia elétrica","Utilização anual de "&$E$35&" (kWh/ano)","Utilização anual de "&$E$35&" (t/ano)") -> Utilização anual de (t/ano)
D37: ="Custo anual de "&$E$35&" (€/ano)" -> Custo anual de (€/ano) | F37: Fatores de conversão
D38: =+IF(E35="Energia Elétrica","Fator de conversão para tep (tep/kWh)","Fator de conversão para tep (tep/t)") -> Fator de conversão para tep (tep/t) | F38: =IF(G38="Intervalo","Escolher o fator entre: "&VLOOKUP($E$35,Conversor!$A$3:$E$49,5,FALSE)&"",VLOOKUP($E$35,Conversor!$A$3:$E$49,5,FALSE)) ->  | G38: =+VLOOKUP($E35,Conversor!$A$3:$H$49,8) -> 
D39: Fator de conversão para CO2e (kg CO2e/tep) | F39: =VLOOKUP($E$35,Conversor!$A$3:$G$49,7,FALSE) -> 
D40: ="Utilização anual de "&$E$35&" (tep/ano)" -> Utilização anual de (tep/ano) | E40: =+E36*E38 -> 0
D41: Emissão anual de CO2e (t CO2e/ano) | E41: =(E39*E40)/1000 -> 0
C42: SITUAÇÃO FUTURA | D42: Economia anual de energia (%) | F42: =IF(E42>2,"São aceitáveis economias de energia até 2%.","") ->  | H42: =+IF(E42>2,"⚠","") -> 
D43: Utilização anual de energia primária (tep/ano) | E43: =+E40*((100-E42)/100) -> 0
D44: Custo anual de energia (€/ano) | E44: =+E37*((100-E42)/100) -> 0
D45: Emissão anual de CO2e (t CO2e/ano) | E45: =+E41*((100-E42)/100) -> 0
C46: ECONOMIAS | D46: Economia anual de energia primária (tep/ano) | E46: =+E40-E43 -> 0
D47: Economia anual de custo (€/ano) | E47: =+E37-E44 -> 0
D48: Emissão anual de CO2e (t CO2e/ano) | E48: =+E41-E45 -> 0
B49: # 4 | C49: SITUAÇÃO ATUAL | D49: Forma de energia usada
D50: =IF(E49="Energia elétrica","Utilização anual de "&$E$49&" (kWh/ano)","Utilização anual de "&$E$49&" (t/ano)") -> Utilização anual de (t/ano)
D51: ="Custo anual de "&$E$49&" (€/ano)" -> Custo anual de (€/ano) | F51: Fatores de conversão
D52: =+IF(E49="Energia Elétrica","Fator de conversão para tep (tep/kWh)","Fator de conversão para tep (tep/t)") -> Fator de conversão para tep (tep/t) | F52: =IF(G52="Intervalo","Escolher o fator entre: "&VLOOKUP($E$49,Conversor!$A$3:$E$49,5,FALSE)&"",VLOOKUP($E$49,Conversor!$A$3:$E$49,5,FALSE)) ->  | G52: =+VLOOKUP($E49,Conversor!$A$3:$H$49,8) -> 
D53: Fator de conversão para CO2e (kg CO2e/tep) | F53: =VLOOKUP($E$49,Conversor!$A$3:$G$49,7,FALSE) -> 
D54: ="Utilização anual de "&$E$49&" (tep/ano)" -> Utilização anual de (tep/ano) | E54: =+E50*E52 -> 0
D55: Emissão anual de CO2e (t CO2e/ano) | E55: =(E53*E54)/1000 -> 0
C56: SITUAÇÃO FUTURA | D56: Economia anual de energia (%) | F56: =IF(E56>2,"São aceitáveis economias de energia até 2%.","") ->  | H56: =+IF(E56>2,"⚠","") -> 
D57: Utilização anual de energia primária (tep/ano) | E57: =+E54*((100-E56)/100) -> 0
D58: Custo anual de energia (€/ano) | E58: =+E51*((100-E56)/100) -> 0
D59: Emissão anual de CO2e (t CO2e/ano) | E59: =+E55*((100-E56)/100) -> 0
C60: ECONOMIAS | D60: Economia anual de energia primária (tep/ano) | E60: =+E54-E57 -> 0
D61: Economia anual de custo (€/ano) | E61: =+E51-E58 -> 0
D62: Emissão anual de CO2e (t CO2e/ano) | E62: =+E55-E59 -> 0
B63: # 5 | C63: SITUAÇÃO ATUAL | D63: Forma de energia usada
D64: =IF(E63="Energia elétrica","Utilização anual de "&$E$63&" (kWh/ano)","Utilização anual de "&$E$63&" (t/ano)") -> Utilização anual de (t/ano)
D65: ="Custo anual de "&$E$63&" (€/ano)" -> Custo anual de (€/ano) | F65: Fatores de conversão
D66: =+IF(E63="Energia Elétrica","Fator de conversão para tep (tep/kWh)","Fator de conversão para tep (tep/t)") -> Fator de conversão para tep (tep/t) | F66: =IF(G66="Intervalo","Escolher o fator entre: "&VLOOKUP($E$63,Conversor!$A$3:$E$49,5,FALSE)&"",VLOOKUP($E$63,Conversor!$A$3:$E$49,5,FALSE)) ->  | G66: =+VLOOKUP($E63,Conversor!$A$3:$H$49,8) -> 
D67: Fator de conversão para CO2e (kg CO2e/tep) | F67: =+VLOOKUP($E$63,Conversor!$A$3:$G$49,7,FALSE) -> 
D68: ="Utilização anual de "&$E$63&" (tep/ano)" -> Utilização anual de (tep/ano) | E68: =+E64*E66 -> 0
D69: Emissão anual de CO2e (t CO2e/ano) | E69: =(E67*E68)/1000 -> 0
C70: SITUAÇÃO FUTURA | D70: Economia anual de energia (%) | F70: =IF(E70>2,"São aceitáveis economias de energia até 2%.","") ->  | H70: =+IF(E70>2,"⚠","") -> 
D71: Utilização anual de energia primária (tep/ano) | E71: =+E68*((100-E70)/100) -> 0
D72: Custo anual de energia (€/ano) | E72: =+E65*((100-E70)/100) -> 0
D73: Emissão anual de CO2e (t CO2e/ano) | E73: =+E69*((100-E70)/100) -> 0
C74: ECONOMIAS | D74: Economia anual de energia primária (tep/ano) | E74: =+E68-E71 -> 0
D75: Economia anual de custo (€/ano) | E75: =+E65-E72 -> 0
D76: Emissão anual de CO2e (t CO2e/ano) | E76: =+E69-E73 -> 0
B77: # 6 | C77: SITUAÇÃO ATUAL | D77: Forma de energia usada
D78: =IF(E77="Energia elétrica","Utilização anual de "&$E$77&" (kWh/ano)","Utilização anual de "&$E$77&" (t/ano)") -> Utilização anual de (t/ano)
D79: ="Custo anual de "&$E$77&" (€/ano)" -> Custo anual de (€/ano) | F79: Fatores de conversão
D80: =+IF(E77="Energia Elétrica","Fator de conversão para tep (tep/kWh)","Fator de conversão para tep (tep/t)") -> Fator de conversão para tep (tep/t) | F80: =IF(G80="Intervalo","Escolher o fator entre: "&VLOOKUP($E$77,Conversor!$A$3:$E$49,5,FALSE)&"",VLOOKUP($E$77,Conversor!$A$3:$E$49,5,FALSE)) ->  | G80: =+VLOOKUP($E77,Conversor!$A$3:$H$49,8) -> 
D81: Fator de conversão para CO2e (kg CO2e/tep) | F81: =+VLOOKUP($E$77,Conversor!$A$3:$G$49,7,FALSE) -> 
D82: ="Utilização anual de "&$E$77&" (tep/ano)" -> Utilização anual de (tep/ano) | E82: =+E78*E80 -> 0
D83: Emissão anual de CO2e (t CO2e/ano) | E83: =(E81*E82)/1000 -> 0
C84: SITUAÇÃO FUTURA | D84: Economia anual de energia (%) | F84: =IF(E84>2,"São aceitáveis economias de energia até 2%.","") ->  | H84: =+IF(E84>2,"⚠","") -> 
D85: Utilização anual de energia primária (tep/ano) | E85: =+E82*((100-E84)/100) -> 0
D86: Custo anual de energia (€/ano) | E86: =+E79*((100-E84)/100) -> 0
D87: Emissão anual de CO2e (t CO2e/ano) | E87: =+E83*((100-E84)/100) -> 0
C88: ECONOMIAS | D88: Economia anual de energia primária (tep/ano) | E88: =+E82-E85 -> 0
D89: Economia anual de custo (€/ano) | E89: =+E79-E86 -> 0
D90: Emissão anual de CO2e (t CO2e/ano) | E90: =+E83-E87 -> 0
B91: # 7 | C91: SITUAÇÃO ATUAL | D91: Forma de energia usada
D92: =IF(E91="Energia elétrica","Utilização anual de "&$E$91&" (kWh/ano)","Utilização anual de "&$E$91&" (t/ano)") -> Utilização anual de (t/ano)
D93: ="Custo anual de "&$E$91&" (€/ano)" -> Custo anual de (€/ano) | F93: Fatores de conversão
D94: =+IF(E91="Energia Elétrica","Fator de conversão para tep (tep/kWh)","Fator de conversão para tep (tep/t)") -> Fator de conversão para tep (tep/t) | F94: =IF(G94="Intervalo","Escolher o fator entre: "&VLOOKUP($E$91,Conversor!$A$3:$E$49,5,FALSE)&"",VLOOKUP($E$91,Conversor!$A$3:$E$49,5,FALSE)) ->  | G94: =+VLOOKUP($E91,Conversor!$A$3:$H$49,8) -> 
D95: Fator de conversão para CO2e (kg CO2e/tep) | F95: =+VLOOKUP($E$91,Conversor!$A$3:$G$49,7,FALSE) -> 
D96: ="Utilização anual de "&$E$91&" (tep/ano)" -> Utilização anual de (tep/ano) | E96: =+E92*E94 -> 0
D97: Emissão anual de CO2e (t CO2e/ano) | E97: =(E95*E96)/1000 -> 0
C98: SITUAÇÃO FUTURA | D98: Economia anual de energia (%) | F98: =IF(E98>2,"São aceitáveis economias de energia até 2%.","") ->  | H98: =+IF(E98>2,"⚠","") -> 
D99: Utilização anual de energia primária (tep/ano) | E99: =+E96*((100-E98)/100) -> 0
D100: Custo anual de energia (€/ano) | E100: =+E93*((100-E98)/100) -> 0
D101: Emissão anual de CO2e (t CO2e/ano) | E101: =+E97*((100-E98)/100) -> 0
C102: ECONOMIAS | D102: Economia anual de energia primária (tep/ano) | E102: =+E96-E99 -> 0
D103: Economia anual de custo (€/ano) | E103: =+E93-E100 -> 0
D104: Emissão anual de CO2e (t CO2e/ano) | E104: =+E97-E101 -> 0
B106: GLOBAL | C106: SITUAÇÃO ATUAL | D106: Custo anual (€/ano) | E106: =IF($E$5=1,E9,IF($E$5=2,(E23+E9),IF($E$5=3,E37+E23+E9,IF($E$5=4,E51+E37+E23+E9,IF($E$5=5,E65+E51+E37+E23+E9,IF($E$5=6,E79+E65+E51+E37+E23+E9,E93+E79+E65+E51+E37+E23+E9)))))) -> 0
D107: Utilização anual de energia (tep/ano) | E107: =IF($E$5=1,E12,IF($E$5=2,(E26+E12),IF($E$5=3,E40+E26+E12,IF($E$5=4,E54+E40+E26+E12,IF($E$5=5,E68+E54+E40+E26+E12,IF($E$5=6,E82+E68+E54+E40+E26+E12,E96+E82+E68+E54+E40+E26+E12)))))) -> 0
D108: Emissão anual de CO2e (t CO2e/ano) | E108: =IF($E$5=1,E13,IF($E$5=2,(E27+E13),IF($E$5=3,E41+E27+E13,IF($E$5=4,E55+E41+E27+E13,IF($E$5=5,E69+E55+E41+E27+E13,IF($E$5=6,E83+E69+E55+E41+E27+E13,E97+E83+E69+E55+E41+E27+E13)))))) -> 0
C110: SITUAÇÃO FUTURA | D110: Economia anual de energia (%) | E110: =IFERROR((E115/E107)*100,"") ->  | F110: =IF(E110>2,"São aceitáveis economias de energia até 2%.","") -> São aceitáveis economias de energia até 2%. | H110: =+IF(E110>2,"⚠","") -> ⚠
D111: Utilização anual de energia primária (tep/ano) | E111: =IF($E$5=1,E15,IF($E$5=2,(E29+E15),IF($E$5=3,E43+E29+E15,IF($E$5=4,E57+E43+E29+E15,IF($E$5=5,E71+E57+E43+E29+E15,IF($E$5=6,E85+E71+E57+E43+E29+E15,E99+E85+E71+E57+E43+E29+E15)))))) -> 0
D112: Custo anual de energia (€/ano) | E112: =IF($E$5=1,E16,IF($E$5=2,(E30+E16),IF($E$5=3,E44+E30+E16,IF($E$5=4,E58+E44+E30+E16,IF($E$5=5,E72+E58+E44+E30+E16,IF($E$5=6,E86+E72+E58+E44+E30+E16,E100+E86+E72+E58+E44+E30+E16)))))) -> 0
D113: Emissão anual de CO2e (t CO2e/ano) | E113: =IF($E$5=1,E17,IF($E$5=2,(E31+E17),IF($E$5=3,E45+E31+E17,IF($E$5=4,E59+E45+E31+E17,IF($E$5=5,E73+E59+E45+E31+E17,IF($E$5=6,E87+E73+E59+E45+E31+E17,E101+E87+E73+E59+E45+E31+E17)))))) -> 0
C115: ECONOMIAS | D115: Economia anual de energia primária (tep/ano) | E115: =+E107-E111 -> 0
D116: Economia anual de custo (€/ano) | E116: =+E106-E112 -> 0
D117: Emissão anual de CO2e (t CO2e/ano) | E117: =+E108-E113 -> 0
C119: AVALIAÇÃO ECONÓMICA | D119: Investimento (€)
D120: Período de retorno do investimento (ano) | E120: =IFERROR(+E119/E116,0) -> 0
C123: Situação atual | D123: =+E107 -> 0 | E123: 1
C124: Situação futura | D124: =+E111 -> 0 | E124: =IFERROR(D124/D123,0) -> 0
C125: Economia | D125: =+D123-D124 -> 0 | E125: =IFERROR(D125/D123,0) -> 0

Sheet Pontos de Monitorização1 (hidden)
B2: SISTEMAS DE QUANTIFICAÇÃO, MONITORIZAÇÃO CONTÍNUA E GESTÃO DE ENERGIA
B5: Identifique a fonte de energia: | D5: =+Economias!E7 -> 0 | E5: (t)
B6: Fator de conversão: | D6: =+Economias!E10 -> 0 | E6: ="tep/"&$E$5&"" -> tep/(t)
B8: Indique o número total de pontos a monitorizar:
B11: número do ponto de monitorização | C11: Identificação do ponto de monitorização | D11: =IF(D5="Energia elétrica","Utilização anual de "&$D$5&" (kWh/ano)","Utilização anual de "&$D$5&" (t/ano)") -> Utilização anual de 0 (t/ano) | E11: Consumo energético referente ao ano de referência (tep/ano)
B12: 1 | E12: =IF(ISNUMBER($D$6),D12*$D$6,#REF!*D12) -> 0
B13: =+B12+1 -> 2 | E13: =IF(ISNUMBER($D$6),D13*$D$6,#REF!*D13) -> 0
B14: =+B13+1 -> 3 | E14: =IF(ISNUMBER($D$6),D14*$D$6,#REF!*D14) -> 0
B15: 4 | E15: =IF(ISNUMBER($D$6),D15*$D$6,#REF!*D15) -> 0
B16: 5 | E16: =IF(ISNUMBER($D$6),D16*$D$6,#REF!*D16) -> 0
B17: 6 | E17: =IF(ISNUMBER($D$6),D17*$D$6,#REF!*D17) -> 0
B18: 7 | E18: =IF(ISNUMBER($D$6),D18*$D$6,#REF!*D18) -> 0
B19: 8 | E19: =IF(ISNUMBER($D$6),D19*$D$6,#REF!*D19) -> 0
B20: 9 | E20: =IF(ISNUMBER($D$6),D20*$D$6,#REF!*D20) -> 0
B21: 10 | E21: =IF(ISNUMBER($D$6),D21*$D$6,#REF!*D21) -> 0
B22: 11 | E22: =IF(ISNUMBER($D$6),D22*$D$6,#REF!*D22) -> 0
B23: 12 | E23: =IF(ISNUMBER($D$6),D23*$D$6,#REF!*D23) -> 0
B24: 13 | E24: =IF(ISNUMBER($D$6),D24*$D$6,#REF!*D24) -> 0
B25: 14 | E25: =IF(ISNUMBER($D$6),D25*$D$6,#REF!*D25) -> 0
B26: 15 | E26: =IF(ISNUMBER($D$6),D26*$D$6,#REF!*D26) -> 0
B27: 16 | E27: =IF(ISNUMBER($D$6),D27*$D$6,#REF!*D27) -> 0
B28: 17 | E28: =IF(ISNUMBER($D$6),D28*$D$6,#REF!*D28) -> 0
B29: 18 | E29: =IF(ISNUMBER($D$6),D29*$D$6,#REF!*D29) -> 0
B30: 19 | E30: =IF(ISNUMBER($D$6),D30*$D$6,#REF!*D30) -> 0
B31: 20 | E31: =IF(ISNUMBER($D$6),D31*$D$6,#REF!*D31) -> 0
B32: 21 | E32: =IF(ISNUMBER($D$6),D32*$D$6,#REF!*D32) -> 0
B33: 22 | E33: =IF(ISNUMBER($D$6),D33*$D$6,#REF!*D33) -> 0
B34: 23 | E34: =IF(ISNUMBER($D$6),D34*$D$6,#REF!*D34) -> 0
B35: 24 | E35: =IF(ISNUMBER($D$6),D35*$D$6,#REF!*D35) -> 0
B36: 25 | E36: =IF(ISNUMBER($D$6),D36*$D$6,#REF!*D36) -> 0
B37: 26 | E37: =IF(ISNUMBER($D$6),D37*$D$6,#REF!*D37) -> 0
B38: 27 | E38: =IF(ISNUMBER($D$6),D38*$D$6,#REF!*D38) -> 0
B39: 28 | E39: =IF(ISNUMBER($D$6),D39*$D$6,#REF!*D39) -> 0
B40: 29 | E40: =IF(ISNUMBER($D$6),D40*$D$6,#REF!*D40) -> 0
B41: 30 | E41: =IF(ISNUMBER($D$6),D41*$D$6,#REF!*D41) -> 0
B42: 31 | E42: =IF(ISNUMBER($D$6),D42*$D$6,#REF!*D42) -> 0
B43: 32 | E43: =IF(ISNUMBER($D$6),D43*$D$6,#REF!*D43) -> 0
B44: 33 | E44: =IF(ISNUMBER($D$6),D44*$D$6,#REF!*D44) -> 0
B45: 34 | E45: =IF(ISNUMBER($D$6),D45*$D$6,#REF!*D45) -> 0
B46: 35 | E46: =IF(ISNUMBER($D$6),D46*$D$6,#REF!*D46) -> 0
B47: 36 | E47: =IF(ISNUMBER($D$6),D47*$D$6,#REF!*D47) -> 0
B48: 37 | E48: =IF(ISNUMBER($D$6),D48*$D$6,#REF!*D48) -> 0
B49: 38 | E49: =IF(ISNUMBER($D$6),D49*$D$6,#REF!*D49) -> 0
B50: 39 | E50: =IF(ISNUMBER($D$6),D50*$D$6,#REF!*D50) -> 0
B51: 40 | E51: =IF(ISNUMBER($D$6),D51*$D$6,#REF!*D51) -> 0
B52: 41 | E52: =IF(ISNUMBER($D$6),D52*$D$6,#REF!*D52) -> 0
B53: 42 | E53: =IF(ISNUMBER($D$6),D53*$D$6,#REF!*D53) -> 0
B54: 43 | E54: =IF(ISNUMBER($D$6),D54*$D$6,#REF!*D54) -> 0
B55: 44 | E55: =IF(ISNUMBER($D$6),D55*$D$6,#REF!*D55) -> 0
B56: 45 | E56: =IF(ISNUMBER($D$6),D56*$D$6,#REF!*D56) -> 0
B57: 46 | E57: =IF(ISNUMBER($D$6),D57*$D$6,#REF!*D57) -> 0
B58: 47 | E58: =IF(ISNUMBER($D$6),D58*$D$6,#REF!*D58) -> 0
B59: 48 | E59: =IF(ISNUMBER($D$6),D59*$D$6,#REF!*D59) -> 0
B60: 49 | E60: =IF(ISNUMBER($D$6),D60*$D$6,#REF!*D60) -> 0
B61: 50 | E61: =IF(ISNUMBER($D$6),D61*$D$6,#REF!*D61) -> 0
B62: 51 | E62: =IF(ISNUMBER($D$6),D62*$D$6,#REF!*D62) -> 0
B63: 52 | E63: =IF(ISNUMBER($D$6),D63*$D$6,#REF!*D63) -> 0
B64: 53 | E64: =IF(ISNUMBER($D$6),D64*$D$6,#REF!*D64) -> 0
B65: 54 | E65: =IF(ISNUMBER($D$6),D65*$D$6,#REF!*D65) -> 0
B66: 55 | E66: =IF(ISNUMBER($D$6),D66*$D$6,#REF!*D66) -> 0
B67: 56 | E67: =IF(ISNUMBER($D$6),D67*$D$6,#REF!*D67) -> 0
B68: 57 | E68: =IF(ISNUMBER($D$6),D68*$D$6,#REF!*D68) -> 0
B69: 58 | E69: =IF(ISNUMBER($D$6),D69*$D$6,#REF!*D69) -> 0
B70: 59 | E70: =IF(ISNUMBER($D$6),D70*$D$6,#REF!*D70) -> 0
B71: 60 | E71: =IF(ISNUMBER($D$6),D71*$D$6,#REF!*D71) -> 0
B72: 61 | E72: =IF(ISNUMBER($D$6),D72*$D$6,#REF!*D72) -> 0
B73: 62 | E73: =IF(ISNUMBER($D$6),D73*$D$6,#REF!*D73) -> 0
B74: 63 | E74: =IF(ISNUMBER($D$6),D74*$D$6,#REF!*D74) -> 0
B75: 64 | E75: =IF(ISNUMBER($D$6),D75*$D$6,#REF!*D75) -> 0
B76: 65 | E76: =IF(ISNUMBER($D$6),D76*$D$6,#REF!*D76) -> 0
B77: 66 | E77: =IF(ISNUMBER($D$6),D77*$D$6,#REF!*D77) -> 0
B78: =+B77+1 -> 67 | E78: =IF(ISNUMBER($D$6),D78*$D$6,#REF!*D78) -> 0
B79: 68 | E79: =IF(ISNUMBER($D$6),D79*$D$6,#REF!*D79) -> 0
B80: 69 | E80: =IF(ISNUMBER($D$6),D80*$D$6,#REF!*D80) -> 0
B81: 70 | E81: =IF(ISNUMBER($D$6),D81*$D$6,#REF!*D81) -> 0
B82: 71 | E82: =IF(ISNUMBER($D$6),D82*$D$6,#REF!*D82) -> 0
B83: 72 | E83: =IF(ISNUMBER($D$6),D83*$D$6,#REF!*D83) -> 0
B84: 73 | E84: =IF(ISNUMBER($D$6),D84*$D$6,#REF!*D84) -> 0
B85: 74 | E85: =IF(ISNUMBER($D$6),D85*$D$6,#REF!*D85) -> 0
B86: 75 | E86: =IF(ISNUMBER($D$6),D86*$D$6,#REF!*D86) -> 0
B87: 76 | E87: =IF(ISNUMBER($D$6),D87*$D$6,#REF!*D87) -> 0
B88: 77 | E88: =IF(ISNUMBER($D$6),D88*$D$6,#REF!*D88) -> 0
B89: 78 | E89: =IF(ISNUMBER($D$6),D89*$D$6,#REF!*D89) -> 0
B90: 79 | E90: =IF(ISNUMBER($D$6),D90*$D$6,#REF!*D90) -> 0
B91: 80 | E91: =IF(ISNUMBER($D$6),D91*$D$6,#REF!*D91) -> 0
B92: 81 | E92: =IF(ISNUMBER($D$6),D92*$D$6,#REF!*D92) -> 0
B93: 82 | E93: =IF(ISNUMBER($D$6),D93*$D$6,#REF!*D93) -> 0
B94: 83 | E94: =IF(ISNUMBER($D$6),D94*$D$6,#REF!*D94) -> 0
B95: 84 | E95: =IF(ISNUMBER($D$6),D95*$D$6,#REF!*D95) -> 0
B96: 85 | E96: =IF(ISNUMBER($D$6),D96*$D$6,#REF!*D96) -> 0
B97: 86 | E97: =IF(ISNUMBER($D$6),D97*$D$6,#REF!*D97) -> 0
B98: 87 | E98: =IF(ISNUMBER($D$6),D98*$D$6,#REF!*D98) -> 0
B99: 88 | E99: =IF(ISNUMBER($D$6),D99*$D$6,#REF!*D99) -> 0
B100: 89 | E100: =IF(ISNUMBER($D$6),D100*$D$6,#REF!*D100) -> 0
B101: 90 | E101: =IF(ISNUMBER($D$6),D101*$D$6,#REF!*D101) -> 0
B102: 91 | E102: =IF(ISNUMBER($D$6),D102*$D$6,#REF!*D102) -> 0
B103: 92 | E103: =IF(ISNUMBER($D$6),D103*$D$6,#REF!*D103) -> 0
B104: 93 | E104: =IF(ISNUMBER($D$6),D104*$D$6,#REF!*D104) -> 0
B105: 94 | E105: =IF(ISNUMBER($D$6),D105*$D$6,#REF!*D105) -> 0
B106: 95 | E106: =IF(ISNUMBER($D$6),D106*$D$6,#REF!*D106) -> 0
B107: 96 | E107: =IF(ISNUMBER($D$6),D107*$D$6,#REF!*D107) -> 0
B108: 97 | E108: =IF(ISNUMBER($D$6),D108*$D$6,#REF!*D108) -> 0
B109: 98 | E109: =IF(ISNUMBER($D$6),D109*$D$6,#REF!*D109) -> 0
B110: 99 | E110: =IF(ISNUMBER($D$6),D110*$D$6,#REF!*D110) -> 0
B111: 100 | E111: =IF(ISNUMBER($D$6),D111*$D$6,#REF!*D111) -> 0
B112: 101 | E112: =IF(ISNUMBER($D$6),D112*$D$6,#REF!*D112) -> 0
B113: 102 | E113: =IF(ISNUMBER($D$6),D113*$D$6,#REF!*D113) -> 0
B114: 103 | E114: =IF(ISNUMBER($D$6),D114*$D$6,#REF!*D114) -> 0
B115: 104 | E115: =IF(ISNUMBER($D$6),D115*$D$6,#REF!*D115) -> 0
B116: 105 | E116: =IF(ISNUMBER($D$6),D116*$D$6,#REF!*D116) -> 0
B117: 106 | E117: =IF(ISNUMBER($D$6),D117*$D$6,#REF!*D117) -> 0
B118: 107 | E118: =IF(ISNUMBER($D$6),D118*$D$6,#REF!*D118) -> 0
B119: 108 | E119: =IF(ISNUMBER($D$6),D119*$D$6,#REF!*D119) -> 0
B120: 109 | E120: =IF(ISNUMBER($D$6),D120*$D$6,#REF!*D120) -> 0
B121: 110 | E121: =IF(ISNUMBER($D$6),D121*$D$6,#REF!*D121) -> 0
B122: 111 | E122: =IF(ISNUMBER($D$6),D122*$D$6,#REF!*D122) -> 0
B123: 112 | E123: =IF(ISNUMBER($D$6),D123*$D$6,#REF!*D123) -> 0
B124: 113 | E124: =IF(ISNUMBER($D$6),D124*$D$6,#REF!*D124) -> 0
B125: 114 | E125: =IF(ISNUMBER($D$6),D125*$D$6,#REF!*D125) -> 0
B126: 115 | E126: =IF(ISNUMBER($D$6),D126*$D$6,#REF!*D126) -> 0
B127: 116 | E127: =IF(ISNUMBER($D$6),D127*$D$6,#REF!*D127) -> 0
B128: 117 | E128: =IF(ISNUMBER($D$6),D128*$D$6,#REF!*D128) -> 0
B129: 118 | E129: =IF(ISNUMBER($D$6),D129*$D$6,#REF!*D129) -> 0
B130: 119 | E130: =IF(ISNUMBER($D$6),D130*$D$6,#REF!*D130) -> 0
B131: 120 | E131: =IF(ISNUMBER($D$6),D131*$D$6,#REF!*D131) -> 0
B132: 121 | E132: =IF(ISNUMBER($D$6),D132*$D$6,#REF!*D132) -> 0
B133: 122 | E133: =IF(ISNUMBER($D$6),D133*$D$6,#REF!*D133) -> 0
B134: 123 | E134: =IF(ISNUMBER($D$6),D134*$D$6,#REF!*D134) -> 0
B135: 124 | E135: =IF(ISNUMBER($D$6),D135*$D$6,#REF!*D135) -> 0
B136: 125 | E136: =IF(ISNUMBER($D$6),D136*$D$6,#REF!*D136) -> 0
B137: 126 | E137: =IF(ISNUMBER($D$6),D137*$D$6,#REF!*D137) -> 0
B138: 127 | E138: =IF(ISNUMBER($D$6),D138*$D$6,#REF!*D138) -> 0
B139: 128 | E139: =IF(ISNUMBER($D$6),D139*$D$6,#REF!*D139) -> 0
B140: 129 | E140: =IF(ISNUMBER($D$6),D140*$D$6,#REF!*D140) -> 0
B141: 130 | E141: =IF(ISNUMBER($D$6),D141*$D$6,#REF!*D141) -> 0
B142: =+B141+1 -> 131 | E142: =IF(ISNUMBER($D$6),D142*$D$6,#REF!*D142) -> 0
B143: 132 | E143: =IF(ISNUMBER($D$6),D143*$D$6,#REF!*D143) -> 0
B144: 133 | E144: =IF(ISNUMBER($D$6),D144*$D$6,#REF!*D144) -> 0
B145: 134 | E145: =IF(ISNUMBER($D$6),D145*$D$6,#REF!*D145) -> 0
B146: 135 | E146: =IF(ISNUMBER($D$6),D146*$D$6,#REF!*D146) -> 0
B147: 136 | E147: =IF(ISNUMBER($D$6),D147*$D$6,#REF!*D147) -> 0
B148: 137 | E148: =IF(ISNUMBER($D$6),D148*$D$6,#REF!*D148) -> 0
B149: 138 | E149: =IF(ISNUMBER($D$6),D149*$D$6,#REF!*D149) -> 0
B150: 139 | E150: =IF(ISNUMBER($D$6),D150*$D$6,#REF!*D150) -> 0
B151: 140 | E151: =IF(ISNUMBER($D$6),D151*$D$6,#REF!*D151) -> 0
B152: 141 | E152: =IF(ISNUMBER($D$6),D152*$D$6,#REF!*D152) -> 0
B153: 142 | E153: =IF(ISNUMBER($D$6),D153*$D$6,#REF!*D153) -> 0
B154: 143 | E154: =IF(ISNUMBER($D$6),D154*$D$6,#REF!*D154) -> 0
B155: 144 | E155: =IF(ISNUMBER($D$6),D155*$D$6,#REF!*D155) -> 0
B156: 145 | E156: =IF(ISNUMBER($D$6),D156*$D$6,#REF!*D156) -> 0
B157: 146 | E157: =IF(ISNUMBER($D$6),D157*$D$6,#REF!*D157) -> 0
B158: 147 | E158: =IF(ISNUMBER($D$6),D158*$D$6,#REF!*D158) -> 0
B159: 148 | E159: =IF(ISNUMBER($D$6),D159*$D$6,#REF!*D159) -> 0
B160: 149 | E160: =IF(ISNUMBER($D$6),D160*$D$6,#REF!*D160) -> 0
B161: 150 | E161: =IF(ISNUMBER($D$6),D161*$D$6,#REF!*D161) -> 0
B162: 151 | E162: =IF(ISNUMBER($D$6),D162*$D$6,#REF!*D162) -> 0
B163: 152 | E163: =IF(ISNUMBER($D$6),D163*$D$6,#REF!*D163) -> 0
B164: 153 | E164: =IF(ISNUMBER($D$6),D164*$D$6,#REF!*D164) -> 0
B165: 154 | E165: =IF(ISNUMBER($D$6),D165*$D$6,#REF!*D165) -> 0
B166: 155 | E166: =IF(ISNUMBER($D$6),D166*$D$6,#REF!*D166) -> 0
B167: 156 | E167: =IF(ISNUMBER($D$6),D167*$D$6,#REF!*D167) -> 0
B168: 157 | E168: =IF(ISNUMBER($D$6),D168*$D$6,#REF!*D168) -> 0
B169: 158 | E169: =IF(ISNUMBER($D$6),D169*$D$6,#REF!*D169) -> 0
B170: 159 | E170: =IF(ISNUMBER($D$6),D170*$D$6,#REF!*D170) -> 0
B171: 160 | E171: =IF(ISNUMBER($D$6),D171*$D$6,#REF!*D171) -> 0
B172: 161 | E172: =IF(ISNUMBER($D$6),D172*$D$6,#REF!*D172) -> 0
B173: 162 | E173: =IF(ISNUMBER($D$6),D173*$D$6,#REF!*D173) -> 0
B174: 163 | E174: =IF(ISNUMBER($D$6),D174*$D$6,#REF!*D174) -> 0
B175: 164 | E175: =IF(ISNUMBER($D$6),D175*$D$6,#REF!*D175) -> 0
B176: 165 | E176: =IF(ISNUMBER($D$6),D176*$D$6,#REF!*D176) -> 0
B177: 166 | E177: =IF(ISNUMBER($D$6),D177*$D$6,#REF!*D177) -> 0
B178: 167 | E178: =IF(ISNUMBER($D$6),D178*$D$6,#REF!*D178) -> 0
B179: 168 | E179: =IF(ISNUMBER($D$6),D179*$D$6,#REF!*D179) -> 0
B180: 169 | E180: =IF(ISNUMBER($D$6),D180*$D$6,#REF!*D180) -> 0
B181: 170 | E181: =IF(ISNUMBER($D$6),D181*$D$6,#REF!*D181) -> 0
B182: 171 | E182: =IF(ISNUMBER($D$6),D182*$D$6,#REF!*D182) -> 0
B183: 172 | E183: =IF(ISNUMBER($D$6),D183*$D$6,#REF!*D183) -> 0
B184: 173 | E184: =IF(ISNUMBER($D$6),D184*$D$6,#REF!*D184) -> 0
B185: 174 | E185: =IF(ISNUMBER($D$6),D185*$D$6,#REF!*D185) -> 0
B186: 175 | E186: =IF(ISNUMBER($D$6),D186*$D$6,#REF!*D186) -> 0
B187: 176 | E187: =IF(ISNUMBER($D$6),D187*$D$6,#REF!*D187) -> 0
B188: 177 | E188: =IF(ISNUMBER($D$6),D188*$D$6,#REF!*D188) -> 0
B189: 178 | E189: =IF(ISNUMBER($D$6),D189*$D$6,#REF!*D189) -> 0
B190: 179 | E190: =IF(ISNUMBER($D$6),D190*$D$6,#REF!*D190) -> 0
B191: 180 | E191: =IF(ISNUMBER($D$6),D191*$D$6,#REF!*D191) -> 0
B192: 181 | E192: =IF(ISNUMBER($D$6),D192*$D$6,#REF!*D192) -> 0
B193: 182 | E193: =IF(ISNUMBER($D$6),D193*$D$6,#REF!*D193) -> 0
B194: 183 | E194: =IF(ISNUMBER($D$6),D194*$D$6,#REF!*D194) -> 0
B195: 184 | E195: =IF(ISNUMBER($D$6),D195*$D$6,#REF!*D195) -> 0
B196: 185 | E196: =IF(ISNUMBER($D$6),D196*$D$6,#REF!*D196) -> 0
B197: 186 | E197: =IF(ISNUMBER($D$6),D197*$D$6,#REF!*D197) -> 0
B198: 187 | E198: =IF(ISNUMBER($D$6),D198*$D$6,#REF!*D198) -> 0
B199: 188 | E199: =IF(ISNUMBER($D$6),D199*$D$6,#REF!*D199) -> 0
B200: 189 | E200: =IF(ISNUMBER($D$6),D200*$D$6,#REF!*D200) -> 0
B201: 190 | E201: =IF(ISNUMBER($D$6),D201*$D$6,#REF!*D201) -> 0
B202: 191 | E202: =IF(ISNUMBER($D$6),D202*$D$6,#REF!*D202) -> 0
B203: 192 | E203: =IF(ISNUMBER($D$6),D203*$D$6,#REF!*D203) -> 0
B204: 193 | E204: =IF(ISNUMBER($D$6),D204*$D$6,#REF!*D204) -> 0
B205: 194 | E205: =IF(ISNUMBER($D$6),D205*$D$6,#REF!*D205) -> 0
B206: =+B205+1 -> 195 | E206: =IF(ISNUMBER($D$6),D206*$D$6,#REF!*D206) -> 0
... 805 more rows

Sheet Pontos de Monitorização2 (hidden)
B2: SISTEMAS DE QUANTIFICAÇÃO, MONITORIZAÇÃO CONTÍNUA E GESTÃO DE ENERGIA
B5: Identifique a fonte de energia: | D5: =+Economias!E21 -> 0 | E5: (t)
B6: Fator de conversão: | D6: =+Economias!E24 -> 0 | E6: ="tep/"&$E$5&"" -> tep/(t)
B8: Indique o número total de pontos a monitorizar:
B11: número do ponto de monitorização | C11: Identificação do ponto de monitorização | D11: =IF(D5="Energia elétrica","Utilização anual de "&$D$5&" (kWh/ano)","Utilização anual de "&$D$5&" (t/ano)") -> Utilização anual de 0 (t/ano) | E11: Consumo energético referente ao ano de referência (tep/ano)
B12: 1 | E12: =IF(ISNUMBER($D$6),D12*$D$6,#REF!*D12) -> 0
B13: =+B12+1 -> 2 | E13: =IF(ISNUMBER($D$6),D13*$D$6,#REF!*D13) -> 0
B14: =+B13+1 -> 3 | E14: =IF(ISNUMBER($D$6),D14*$D$6,#REF!*D14) -> 0
B15: 4 | E15: =IF(ISNUMBER($D$6),D15*$D$6,#REF!*D15) -> 0
B16: 5 | E16: =IF(ISNUMBER($D$6),D16*$D$6,#REF!*D16) -> 0
B17: 6 | E17: =IF(ISNUMBER($D$6),D17*$D$6,#REF!*D17) -> 0
B18: 7 | E18: =IF(ISNUMBER($D$6),D18*$D$6,#REF!*D18) -> 0
B19: 8 | E19: =IF(ISNUMBER($D$6),D19*$D$6,#REF!*D19) -> 0
B20: 9 | E20: =IF(ISNUMBER($D$6),D20*$D$6,#REF!*D20) -> 0
B21: 10 | E21: =IF(ISNUMBER($D$6),D21*$D$6,#REF!*D21) -> 0
B22: 11 | E22: =IF(ISNUMBER($D$6),D22*$D$6,#REF!*D22) -> 0
B23: 12 | E23: =IF(ISNUMBER($D$6),D23*$D$6,#REF!*D23) -> 0
B24: 13 | E24: =IF(ISNUMBER($D$6),D24*$D$6,#REF!*D24) -> 0
B25: 14 | E25: =IF(ISNUMBER($D$6),D25*$D$6,#REF!*D25) -> 0
B26: 15 | E26: =IF(ISNUMBER($D$6),D26*$D$6,#REF!*D26) -> 0
B27: 16 | E27: =IF(ISNUMBER($D$6),D27*$D$6,#REF!*D27) -> 0
B28: 17 | E28: =IF(ISNUMBER($D$6),D28*$D$6,#REF!*D28) -> 0
B29: 18 | E29: =IF(ISNUMBER($D$6),D29*$D$6,#REF!*D29) -> 0
B30: 19 | E30: =IF(ISNUMBER($D$6),D30*$D$6,#REF!*D30) -> 0
B31: 20 | E31: =IF(ISNUMBER($D$6),D31*$D$6,#REF!*D31) -> 0
B32: 21 | E32: =IF(ISNUMBER($D$6),D32*$D$6,#REF!*D32) -> 0
B33: 22 | E33: =IF(ISNUMBER($D$6),D33*$D$6,#REF!*D33) -> 0
B34: 23 | E34: =IF(ISNUMBER($D$6),D34*$D$6,#REF!*D34) -> 0
B35: 24 | E35: =IF(ISNUMBER($D$6),D35*$D$6,#REF!*D35) -> 0
B36: 25 | E36: =IF(ISNUMBER($D$6),D36*$D$6,#REF!*D36) -> 0
B37: 26 | E37: =IF(ISNUMBER($D$6),D37*$D$6,#REF!*D37) -> 0
B38: 27 | E38: =IF(ISNUMBER($D$6),D38*$D$6,#REF!*D38) -> 0
B39: 28 | E39: =IF(ISNUMBER($D$6),D39*$D$6,#REF!*D39) -> 0
B40: 29 | E40: =IF(ISNUMBER($D$6),D40*$D$6,#REF!*D40) -> 0
B41: 30 | E41: =IF(ISNUMBER($D$6),D41*$D$6,#REF!*D41) -> 0
B42: 31 | E42: =IF(ISNUMBER($D$6),D42*$D$6,#REF!*D42) -> 0
B43: 32 | E43: =IF(ISNUMBER($D$6),D43*$D$6,#REF!*D43) -> 0
B44: 33 | E44: =IF(ISNUMBER($D$6),D44*$D$6,#REF!*D44) -> 0
B45: 34 | E45: =IF(ISNUMBER($D$6),D45*$D$6,#REF!*D45) -> 0
B46: 35 | E46: =IF(ISNUMBER($D$6),D46*$D$6,#REF!*D46) -> 0
B47: 36 | E47: =IF(ISNUMBER($D$6),D47*$D$6,#REF!*D47) -> 0
B48: 37 | E48: =IF(ISNUMBER($D$6),D48*$D$6,#REF!*D48) -> 0
B49: 38 | E49: =IF(ISNUMBER($D$6),D49*$D$6,#REF!*D49) -> 0
B50: 39 | E50: =IF(ISNUMBER($D$6),D50*$D$6,#REF!*D50) -> 0
B51: 40 | E51: =IF(ISNUMBER($D$6),D51*$D$6,#REF!*D51) -> 0
B52: 41 | E52: =IF(ISNUMBER($D$6),D52*$D$6,#REF!*D52) -> 0
B53: 42 | E53: =IF(ISNUMBER($D$6),D53*$D$6,#REF!*D53) -> 0
B54: 43 | E54: =IF(ISNUMBER($D$6),D54*$D$6,#REF!*D54) -> 0
B55: 44 | E55: =IF(ISNUMBER($D$6),D55*$D$6,#REF!*D55) -> 0
B56: 45 | E56: =IF(ISNUMBER($D$6),D56*$D$6,#REF!*D56) -> 0
B57: 46 | E57: =IF(ISNUMBER($D$6),D57*$D$6,#REF!*D57) -> 0
B58: 47 | E58: =IF(ISNUMBER($D$6),D58*$D$6,#REF!*D58) -> 0
B59: 48 | E59: =IF(ISNUMBER($D$6),D59*$D$6,#REF!*D59) -> 0
B60: 49 | E60: =IF(ISNUMBER($D$6),D60*$D$6,#REF!*D60) -> 0
B61: 50 | E61: =IF(ISNUMBER($D$6),D61*$D$6,#REF!*D61) -> 0
B62: 51 | E62: =IF(ISNUMBER($D$6),D62*$D$6,#REF!*D62) -> 0
B63: 52 | E63: =IF(ISNUMBER($D$6),D63*$D$6,#REF!*D63) -> 0
B64: 53 | E64: =IF(ISNUMBER($D$6),D64*$D$6,#REF!*D64) -> 0
B65: 54 | E65: =IF(ISNUMBER($D$6),D65*$D$6,#REF!*D65) -> 0
B66: 55 | E66: =IF(ISNUMBER($D$6),D66*$D$6,#REF!*D66) -> 0
B67: 56 | E67: =IF(ISNUMBER($D$6),D67*$D$6,#REF!*D67) -> 0
B68: 57 | E68: =IF(ISNUMBER($D$6),D68*$D$6,#REF!*D68) -> 0
B69: 58 | E69: =IF(ISNUMBER($D$6),D69*$D$6,#REF!*D69) -> 0
B70: 59 | E70: =IF(ISNUMBER($D$6),D70*$D$6,#REF!*D70) -> 0
B71: 60 | E71: =IF(ISNUMBER($D$6),D71*$D$6,#REF!*D71) -> 0
B72: 61 | E72: =IF(ISNUMBER($D$6),D72*$D$6,#REF!*D72) -> 0
B73: 62 | E73: =IF(ISNUMBER($D$6),D73*$D$6,#REF!*D73) -> 0
B74: 63 | E74: =IF(ISNUMBER($D$6),D74*$D$6,#REF!*D74) -> 0
B75: 64 | E75: =IF(ISNUMBER($D$6),D75*$D$6,#REF!*D75) -> 0
B76: 65 | E76: =IF(ISNUMBER($D$6),D76*$D$6,#REF!*D76) -> 0
B77: 66 | E77: =IF(ISNUMBER($D$6),D77*$D$6,#REF!*D77) -> 0
B78: =+B77+1 -> 67 | E78: =IF(ISNUMBER($D$6),D78*$D$6,#REF!*D78) -> 0
B79: 68 | E79: =IF(ISNUMBER($D$6),D79*$D$6,#REF!*D79) -> 0
B80: 69 | E80: =IF(ISNUMBER($D$6),D80*$D$6,#REF!*D80) -> 0
B81: 70 | E81: =IF(ISNUMBER($D$6),D81*$D$6,#REF!*D81) -> 0
B82: 71 | E82: =IF(ISNUMBER($D$6),D82*$D$6,#REF!*D82) -> 0
B83: 72 | E83: =IF(ISNUMBER($D$6),D83*$D$6,#REF!*D83) -> 0
B84: 73 | E84: =IF(ISNUMBER($D$6),D84*$D$6,#REF!*D84) -> 0
B85: 74 | E85: =IF(ISNUMBER($D$6),D85*$D$6,#REF!*D85) -> 0
B86: 75 | E86: =IF(ISNUMBER($D$6),D86*$D$6,#REF!*D86) -> 0
B87: 76 | E87: =IF(ISNUMBER($D$6),D87*$D$6,#REF!*D87) -> 0
B88: 77 | E88: =IF(ISNUMBER($D$6),D88*$D$6,#REF!*D88) -> 0
B89: 78 | E89: =IF(ISNUMBER($D$6),D89*$D$6,#REF!*D89) -> 0
B90: 79 | E90: =IF(ISNUMBER($D$6),D90*$D$6,#REF!*D90) -> 0
B91: 80 | E91: =IF(ISNUMBER($D$6),D91*$D$6,#REF!*D91) -> 0
B92: 81 | E92: =IF(ISNUMBER($D$6),D92*$D$6,#REF!*D92) -> 0
B93: 82 | E93: =IF(ISNUMBER($D$6),D93*$D$6,#REF!*D93) -> 0
B94: 83 | E94: =IF(ISNUMBER($D$6),D94*$D$6,#REF!*D94) -> 0
B95: 84 | E95: =IF(ISNUMBER($D$6),D95*$D$6,#REF!*D95) -> 0
B96: 85 | E96: =IF(ISNUMBER($D$6),D96*$D$6,#REF!*D96) -> 0
B97: 86 | E97: =IF(ISNUMBER($D$6),D97*$D$6,#REF!*D97) -> 0
B98: 87 | E98: =IF(ISNUMBER($D$6),D98*$D$6,#REF!*D98) -> 0
B99: 88 | E99: =IF(ISNUMBER($D$6),D99*$D$6,#REF!*D99) -> 0
B100: 89 | E100: =IF(ISNUMBER($D$6),D100*$D$6,#REF!*D100) -> 0
B101: 90 | E101: =IF(ISNUMBER($D$6),D101*$D$6,#REF!*D101) -> 0
B102: 91 | E102: =IF(ISNUMBER($D$6),D102*$D$6,#REF!*D102) -> 0
B103: 92 | E103: =IF(ISNUMBER($D$6),D103*$D$6,#REF!*D103) -> 0
B104: 93 | E104: =IF(ISNUMBER($D$6),D104*$D$6,#REF!*D104) -> 0
B105: 94 | E105: =IF(ISNUMBER($D$6),D105*$D$6,#REF!*D105) -> 0
B106: 95 | E106: =IF(ISNUMBER($D$6),D106*$D$6,#REF!*D106) -> 0
B107: 96 | E107: =IF(ISNUMBER($D$6),D107*$D$6,#REF!*D107) -> 0
B108: 97 | E108: =IF(ISNUMBER($D$6),D108*$D$6,#REF!*D108) -> 0
B109: 98 | E109: =IF(ISNUMBER($D$6),D109*$D$6,#REF!*D109) -> 0
B110: 99 | E110: =IF(ISNUMBER($D$6),D110*$D$6,#REF!*D110) -> 0
B111: 100 | E111: =IF(ISNUMBER($D$6),D111*$D$6,#REF!*D111) -> 0
B112: 101 | E112: =IF(ISNUMBER($D$6),D112*$D$6,#REF!*D112) -> 0
B113: 102 | E113: =IF(ISNUMBER($D$6),D113*$D$6,#REF!*D113) -> 0
B114: 103 | E114: =IF(ISNUMBER($D$6),D114*$D$6,#REF!*D114) -> 0
B115: 104 | E115: =IF(ISNUMBER($D$6),D115*$D$6,#REF!*D115) -> 0
B116: 105 | E116: =IF(ISNUMBER($D$6),D116*$D$6,#REF!*D116) -> 0
B117: 106 | E117: =IF(ISNUMBER($D$6),D117*$D$6,#REF!*D117) -> 0
B118: 107 | E118: =IF(ISNUMBER($D$6),D118*$D$6,#REF!*D118) -> 0
B119: 108 | E119: =IF(ISNUMBER($D$6),D119*$D$6,#REF!*D119) -> 0
B120: 109 | E120: =IF(ISNUMBER($D$6),D120*$D$6,#REF!*D120) -> 0
B121: 110 | E121: =IF(ISNUMBER($D$6),D121*$D$6,#REF!*D121) -> 0
B122: 111 | E122: =IF(ISNUMBER($D$6),D122*$D$6,#REF!*D122) -> 0
B123: 112 | E123: =IF(ISNUMBER($D$6),D123*$D$6,#REF!*D123) -> 0
B124: 113 | E124: =IF(ISNUMBER($D$6),D124*$D$6,#REF!*D124) -> 0
B125: 114 | E125: =IF(ISNUMBER($D$6),D125*$D$6,#REF!*D125) -> 0
B126: 115 | E126: =IF(ISNUMBER($D$6),D126*$D$6,#REF!*D126) -> 0
B127: 116 | E127: =IF(ISNUMBER($D$6),D127*$D$6,#REF!*D127) -> 0
B128: 117 | E128: =IF(ISNUMBER($D$6),D128*$D$6,#REF!*D128) -> 0
B129: 118 | E129: =IF(ISNUMBER($D$6),D129*$D$6,#REF!*D129) -> 0
B130: 119 | E130: =IF(ISNUMBER($D$6),D130*$D$6,#REF!*D130) -> 0
B131: 120 | E131: =IF(ISNUMBER($D$6),D131*$D$6,#REF!*D131) -> 0
B132: 121 | E132: =IF(ISNUMBER($D$6),D132*$D$6,#REF!*D132) -> 0
B133: 122 | E133: =IF(ISNUMBER($D$6),D133*$D$6,#REF!*D133) -> 0
B134: 123 | E134: =IF(ISNUMBER($D$6),D134*$D$6,#REF!*D134) -> 0
B135: 124 | E135: =IF(ISNUMBER($D$6),D135*$D$6,#REF!*D135) -> 0
B136: 125 | E136: =IF(ISNUMBER($D$6),D136*$D$6,#REF!*D136) -> 0
B137: 126 | E137: =IF(ISNUMBER($D$6),D137*$D$6,#REF!*D137) -> 0
B138: 127 | E138: =IF(ISNUMBER($D$6),D138*$D$6,#REF!*D138) -> 0
B139: 128 | E139: =IF(ISNUMBER($D$6),D139*$D$6,#REF!*D139) -> 0
B140: 129 | E140: =IF(ISNUMBER($D$6),D140*$D$6,#REF!*D140) -> 0
B141: 130 | E141: =IF(ISNUMBER($D$6),D141*$D$6,#REF!*D141) -> 0
B142: =+B141+1 -> 131 | E142: =IF(ISNUMBER($D$6),D142*$D$6,#REF!*D142) -> 0
B143: 132 | E143: =IF(ISNUMBER($D$6),D143*$D$6,#REF!*D143) -> 0
B144: 133 | E144: =IF(ISNUMBER($D$6),D144*$D$6,#REF!*D144) -> 0
B145: 134 | E145: =IF(ISNUMBER($D$6),D145*$D$6,#REF!*D145) -> 0
B146: 135 | E146: =IF(ISNUMBER($D$6),D146*$D$6,#REF!*D146) -> 0
B147: 136 | E147: =IF(ISNUMBER($D$6),D147*$D$6,#REF!*D147) -> 0
B148: 137 | E148: =IF(ISNUMBER($D$6),D148*$D$6,#REF!*D148) -> 0
B149: 138 | E149: =IF(ISNUMBER($D$6),D149*$D$6,#REF!*D149) -> 0
B150: 139 | E150: =IF(ISNUMBER($D$6),D150*$D$6,#REF!*D150) -> 0
B151: 140 | E151: =IF(ISNUMBER($D$6),D151*$D$6,#REF!*D151) -> 0
B152: 141 | E152: =IF(ISNUMBER($D$6),D152*$D$6,#REF!*D152) -> 0
B153: 142 | E153: =IF(ISNUMBER($D$6),D153*$D$6,#REF!*D153) -> 0
B154: 143 | E154: =IF(ISNUMBER($D$6),D154*$D$6,#REF!*D154) -> 0
B155: 144 | E155: =IF(ISNUMBER($D$6),D155*$D$6,#REF!*D155) -> 0
B156: 145 | E156: =IF(ISNUMBER($D$6),D156*$D$6,#REF!*D156) -> 0
B157: 146 | E157: =IF(ISNUMBER($D$6),D157*$D$6,#REF!*D157) -> 0
B158: 147 | E158: =IF(ISNUMBER($D$6),D158*$D$6,#REF!*D158) -> 0
B159: 148 | E159: =IF(ISNUMBER($D$6),D159*$D$6,#REF!*D159) -> 0
B160: 149 | E160: =IF(ISNUMBER($D$6),D160*$D$6,#REF!*D160) -> 0
B161: 150 | E161: =IF(ISNUMBER($D$6),D161*$D$6,#REF!*D161) -> 0
B162: 151 | E162: =IF(ISNUMBER($D$6),D162*$D$6,#REF!*D162) -> 0
B163: 152 | E163: =IF(ISNUMBER($D$6),D163*$D$6,#REF!*D163) -> 0
B164: 153 | E164: =IF(ISNUMBER($D$6),D164*$D$6,#REF!*D164) -> 0
B165: 154 | E165: =IF(ISNUMBER($D$6),D165*$D$6,#REF!*D165) -> 0
B166: 155 | E166: =IF(ISNUMBER($D$6),D166*$D$6,#REF!*D166) -> 0
B167: 156 | E167: =IF(ISNUMBER($D$6),D167*$D$6,#REF!*D167) -> 0
B168: 157 | E168: =IF(ISNUMBER($D$6),D168*$D$6,#REF!*D168) -> 0
B169: 158 | E169: =IF(ISNUMBER($D$6),D169*$D$6,#REF!*D169) -> 0
B170: 159 | E170: =IF(ISNUMBER($D$6),D170*$D$6,#REF!*D170) -> 0
B171: 160 | E171: =IF(ISNUMBER($D$6),D171*$D$6,#REF!*D171) -> 0
B172: 161 | E172: =IF(ISNUMBER($D$6),D172*$D$6,#REF!*D172) -> 0
B173: 162 | E173: =IF(ISNUMBER($D$6),D173*$D$6,#REF!*D173) -> 0
B174: 163 | E174: =IF(ISNUMBER($D$6),D174*$D$6,#REF!*D174) -> 0
B175: 164 | E175: =IF(ISNUMBER($D$6),D175*$D$6,#REF!*D175) -> 0
B176: 165 | E176: =IF(ISNUMBER($D$6),D176*$D$6,#REF!*D176) -> 0
B177: 166 | E177: =IF(ISNUMBER($D$6),D177*$D$6,#REF!*D177) -> 0
B178: 167 | E178: =IF(ISNUMBER($D$6),D178*$D$6,#REF!*D178) -> 0
B179: 168 | E179: =IF(ISNUMBER($D$6),D179*$D$6,#REF!*D179) -> 0
B180: 169 | E180: =IF(ISNUMBER($D$6),D180*$D$6,#REF!*D180) -> 0
B181: 170 | E181: =IF(ISNUMBER($D$6),D181*$D$6,#REF!*D181) -> 0
B182: 171 | E182: =IF(ISNUMBER($D$6),D182*$D$6,#REF!*D182) -> 0
B183: 172 | E183: =IF(ISNUMBER($D$6),D183*$D$6,#REF!*D183) -> 0
B184: 173 | E184: =IF(ISNUMBER($D$6),D184*$D$6,#REF!*D184) -> 0
B185: 174 | E185: =IF(ISNUMBER($D$6),D185*$D$6,#REF!*D185) -> 0
B186: 175 | E186: =IF(ISNUMBER($D$6),D186*$D$6,#REF!*D186) -> 0
B187: 176 | E187: =IF(ISNUMBER($D$6),D187*$D$6,#REF!*D187) -> 0
B188: 177 | E188: =IF(ISNUMBER($D$6),D188*$D$6,#REF!*D188) -> 0
B189: 178 | E189: =IF(ISNUMBER($D$6),D189*$D$6,#REF!*D189) -> 0
B190: 179 | E190: =IF(ISNUMBER($D$6),D190*$D$6,#REF!*D190) -> 0
B191: 180 | E191: =IF(ISNUMBER($D$6),D191*$D$6,#REF!*D191) -> 0
B192: 181 | E192: =IF(ISNUMBER($D$6),D192*$D$6,#REF!*D192) -> 0
B193: 182 | E193: =IF(ISNUMBER($D$6),D193*$D$6,#REF!*D193) -> 0
B194: 183 | E194: =IF(ISNUMBER($D$6),D194*$D$6,#REF!*D194) -> 0
B195: 184 | E195: =IF(ISNUMBER($D$6),D195*$D$6,#REF!*D195) -> 0
B196: 185 | E196: =IF(ISNUMBER($D$6),D196*$D$6,#REF!*D196) -> 0
B197: 186 | E197: =IF(ISNUMBER($D$6),D197*$D$6,#REF!*D197) -> 0
B198: 187 | E198: =IF(ISNUMBER($D$6),D198*$D$6,#REF!*D198) -> 0
B199: 188 | E199: =IF(ISNUMBER($D$6),D199*$D$6,#REF!*D199) -> 0
B200: 189 | E200: =IF(ISNUMBER($D$6),D200*$D$6,#REF!*D200) -> 0
B201: 190 | E201: =IF(ISNUMBER($D$6),D201*$D$6,#REF!*D201) -> 0
B202: 191 | E202: =IF(ISNUMBER($D$6),D202*$D$6,#REF!*D202) -> 0
B203: 192 | E203: =IF(ISNUMBER($D$6),D203*$D$6,#REF!*D203) -> 0
B204: 193 | E204: =IF(ISNUMBER($D$6),D204*$D$6,#REF!*D204) -> 0
B205: 194 | E205: =IF(ISNUMBER($D$6),D205*$D$6,#REF!*D205) -> 0
B206: =+B205+1 -> 195 | E206: =IF(ISNUMBER($D$6),D206*$D$6,#REF!*D206) -> 0
... 805 more rows

Sheet Pontos de Monitorização3 (hidden)
B2: SISTEMAS DE QUANTIFICAÇÃO, MONITORIZAÇÃO CONTÍNUA E GESTÃO DE ENERGIA
B5: Identifique a fonte de energia: | D5: =+Economias!E35 -> 0 | E5: (t)
B6: Fator de conversão: | D6: =+Economias!E38 -> 0 | E6: ="tep/"&$E$5&"" -> tep/(t)
B8: Indique o número total de pontos a monitorizar:
B11: número do ponto de monitorização | C11: Identificação do ponto de monitorização | D11: =IF(D5="Energia elétrica","Utilização anual de "&$D$5&" (kWh/ano)","Utilização anual de "&$D$5&" (t/ano)") -> Utilização anual de 0 (t/ano) | E11: Consumo energético referente ao ano de referência (tep/ano)
B12: 1 | E12: =IF(ISNUMBER($D$6),D12*$D$6,#REF!*D12) -> 0
B13: =+B12+1 -> 2 | E13: =IF(ISNUMBER($D$6),D13*$D$6,#REF!*D13) -> 0
B14: =+B13+1 -> 3 | E14: =IF(ISNUMBER($D$6),D14*$D$6,#REF!*D14) -> 0
B15: 4 | E15: =IF(ISNUMBER($D$6),D15*$D$6,#REF!*D15) -> 0
B16: 5 | E16: =IF(ISNUMBER($D$6),D16*$D$6,#REF!*D16) -> 0
B17: 6 | E17: =IF(ISNUMBER($D$6),D17*$D$6,#REF!*D17) -> 0
B18: 7 | E18: =IF(ISNUMBER($D$6),D18*$D$6,#REF!*D18) -> 0
B19: 8 | E19: =IF(ISNUMBER($D$6),D19*$D$6,#REF!*D19) -> 0
B20: 9 | E20: =IF(ISNUMBER($D$6),D20*$D$6,#REF!*D20) -> 0
B21: 10 | E21: =IF(ISNUMBER($D$6),D21*$D$6,#REF!*D21) -> 0
B22: 11 | E22: =IF(ISNUMBER($D$6),D22*$D$6,#REF!*D22) -> 0
B23: 12 | E23: =IF(ISNUMBER($D$6),D23*$D$6,#REF!*D23) -> 0
B24: 13 | E24: =IF(ISNUMBER($D$6),D24*$D$6,#REF!*D24) -> 0
B25: 14 | E25: =IF(ISNUMBER($D$6),D25*$D$6,#REF!*D25) -> 0
B26: 15 | E26: =IF(ISNUMBER($D$6),D26*$D$6,#REF!*D26) -> 0
B27: 16 | E27: =IF(ISNUMBER($D$6),D27*$D$6,#REF!*D27) -> 0
B28: 17 | E28: =IF(ISNUMBER($D$6),D28*$D$6,#REF!*D28) -> 0
B29: 18 | E29: =IF(ISNUMBER($D$6),D29*$D$6,#REF!*D29) -> 0
B30: 19 | E30: =IF(ISNUMBER($D$6),D30*$D$6,#REF!*D30) -> 0
B31: 20 | E31: =IF(ISNUMBER($D$6),D31*$D$6,#REF!*D31) -> 0
B32: 21 | E32: =IF(ISNUMBER($D$6),D32*$D$6,#REF!*D32) -> 0
B33: 22 | E33: =IF(ISNUMBER($D$6),D33*$D$6,#REF!*D33) -> 0
B34: 23 | E34: =IF(ISNUMBER($D$6),D34*$D$6,#REF!*D34) -> 0
B35: 24 | E35: =IF(ISNUMBER($D$6),D35*$D$6,#REF!*D35) -> 0
B36: 25 | E36: =IF(ISNUMBER($D$6),D36*$D$6,#REF!*D36) -> 0
B37: 26 | E37: =IF(ISNUMBER($D$6),D37*$D$6,#REF!*D37) -> 0
B38: 27 | E38: =IF(ISNUMBER($D$6),D38*$D$6,#REF!*D38) -> 0
B39: 28 | E39: =IF(ISNUMBER($D$6),D39*$D$6,#REF!*D39) -> 0
B40: 29 | E40: =IF(ISNUMBER($D$6),D40*$D$6,#REF!*D40) -> 0
B41: 30 | E41: =IF(ISNUMBER($D$6),D41*$D$6,#REF!*D41) -> 0
B42: 31 | E42: =IF(ISNUMBER($D$6),D42*$D$6,#REF!*D42) -> 0
B43: 32 | E43: =IF(ISNUMBER($D$6),D43*$D$6,#REF!*D43) -> 0
B44: 33 | E44: =IF(ISNUMBER($D$6),D44*$D$6,#REF!*D44) -> 0
B45: 34 | E45: =IF(ISNUMBER($D$6),D45*$D$6,#REF!*D45) -> 0
B46: 35 | E46: =IF(ISNUMBER($D$6),D46*$D$6,#REF!*D46) -> 0
B47: 36 | E47: =IF(ISNUMBER($D$6),D47*$D$6,#REF!*D47) -> 0
B48: 37 | E48: =IF(ISNUMBER($D$6),D48*$D$6,#REF!*D48) -> 0
B49: 38 | E49: =IF(ISNUMBER($D$6),D49*$D$6,#REF!*D49) -> 0
B50: 39 | E50: =IF(ISNUMBER($D$6),D50*$D$6,#REF!*D50) -> 0
B51: 40 | E51: =IF(ISNUMBER($D$6),D51*$D$6,#REF!*D51) -> 0
B52: 41 | E52: =IF(ISNUMBER($D$6),D52*$D$6,#REF!*D52) -> 0
B53: 42 | E53: =IF(ISNUMBER($D$6),D53*$D$6,#REF!*D53) -> 0
B54: 43 | E54: =IF(ISNUMBER($D$6),D54*$D$6,#REF!*D54) -> 0
B55: 44 | E55: =IF(ISNUMBER($D$6),D55*$D$6,#REF!*D55) -> 0
B56: 45 | E56: =IF(ISNUMBER($D$6),D56*$D$6,#REF!*D56) -> 0
B57: 46 | E57: =IF(ISNUMBER($D$6),D57*$D$6,#REF!*D57) -> 0
B58: 47 | E58: =IF(ISNUMBER($D$6),D58*$D$6,#REF!*D58) -> 0
B59: 48 | E59: =IF(ISNUMBER($D$6),D59*$D$6,#REF!*D59) -> 0
B60: 49 | E60: =IF(ISNUMBER($D$6),D60*$D$6,#REF!*D60) -> 0
B61: 50 | E61: =IF(ISNUMBER($D$6),D61*$D$6,#REF!*D61) -> 0
B62: 51 | E62: =IF(ISNUMBER($D$6),D62*$D$6,#REF!*D62) -> 0
B63: 52 | E63: =IF(ISNUMBER($D$6),D63*$D$6,#REF!*D63) -> 0
B64: 53 | E64: =IF(ISNUMBER($D$6),D64*$D$6,#REF!*D64) -> 0
B65: 54 | E65: =IF(ISNUMBER($D$6),D65*$D$6,#REF!*D65) -> 0
B66: 55 | E66: =IF(ISNUMBER($D$6),D66*$D$6,#REF!*D66) -> 0
B67: 56 | E67: =IF(ISNUMBER($D$6),D67*$D$6,#REF!*D67) -> 0
B68: 57 | E68: =IF(ISNUMBER($D$6),D68*$D$6,#REF!*D68) -> 0
B69: 58 | E69: =IF(ISNUMBER($D$6),D69*$D$6,#REF!*D69) -> 0
B70: 59 | E70: =IF(ISNUMBER($D$6),D70*$D$6,#REF!*D70) -> 0
B71: 60 | E71: =IF(ISNUMBER($D$6),D71*$D$6,#REF!*D71) -> 0
B72: 61 | E72: =IF(ISNUMBER($D$6),D72*$D$6,#REF!*D72) -> 0
B73: 62 | E73: =IF(ISNUMBER($D$6),D73*$D$6,#REF!*D73) -> 0
B74: 63 | E74: =IF(ISNUMBER($D$6),D74*$D$6,#REF!*D74) -> 0
B75: 64 | E75: =IF(ISNUMBER($D$6),D75*$D$6,#REF!*D75) -> 0
B76: 65 | E76: =IF(ISNUMBER($D$6),D76*$D$6,#REF!*D76) -> 0
B77: 66 | E77: =IF(ISNUMBER($D$6),D77*$D$6,#REF!*D77) -> 0
B78: =+B77+1 -> 67 | E78: =IF(ISNUMBER($D$6),D78*$D$6,#REF!*D78) -> 0
B79: 68 | E79: =IF(ISNUMBER($D$6),D79*$D$6,#REF!*D79) -> 0
B80: 69 | E80: =IF(ISNUMBER($D$6),D80*$D$6,#REF!*D80) -> 0
B81: 70 | E81: =IF(ISNUMBER($D$6),D81*$D$6,#REF!*D81) -> 0
B82: 71 | E82: =IF(ISNUMBER($D$6),D82*$D$6,#REF!*D82) -> 0
B83: 72 | E83: =IF(ISNUMBER($D$6),D83*$D$6,#REF!*D83) -> 0
B84: 73 | E84: =IF(ISNUMBER($D$6),D84*$D$6,#REF!*D84) -> 0
B85: 74 | E85: =IF(ISNUMBER($D$6),D85*$D$6,#REF!*D85) -> 0
B86: 75 | E86: =IF(ISNUMBER($D$6),D86*$D$6,#REF!*D86) -> 0
B87: 76 | E87: =IF(ISNUMBER($D$6),D87*$D$6,#REF!*D87) -> 0
B88: 77 | E88: =IF(ISNUMBER($D$6),D88*$D$6,#REF!*D88) -> 0
B89: 78 | E89: =IF(ISNUMBER($D$6),D89*$D$6,#REF!*D89) -> 0
B90: 79 | E90: =IF(ISNUMBER($D$6),D90*$D$6,#REF!*D90) -> 0
B91: 80 | E91: =IF(ISNUMBER($D$6),D91*$D$6,#REF!*D91) -> 0
B92: 81 | E92: =IF(ISNUMBER($D$6),D92*$D$6,#REF!*D92) -> 0
B93: 82 | E93: =IF(ISNUMBER($D$6),D93*$D$6,#REF!*D93) -> 0
B94: 83 | E94: =IF(ISNUMBER($D$6),D94*$D$6,#REF!*D94) -> 0
B95: 84 | E95: =IF(ISNUMBER($D$6),D95*$D$6,#REF!*D95) -> 0
B96: 85 | E96: =IF(ISNUMBER($D$6),D96*$D$6,#REF!*D96) -> 0
B97: 86 | E97: =IF(ISNUMBER($D$6),D97*$D$6,#REF!*D97) -> 0
B98: 87 | E98: =IF(ISNUMBER($D$6),D98*$D$6,#REF!*D98) -> 0
B99: 88 | E99: =IF(ISNUMBER($D$6),D99*$D$6,#REF!*D99) -> 0
B100: 89 | E100: =IF(ISNUMBER($D$6),D100*$D$6,#REF!*D100) -> 0
B101: 90 | E101: =IF(ISNUMBER($D$6),D101*$D$6,#REF!*D101) -> 0
B102: 91 | E102: =IF(ISNUMBER($D$6),D102*$D$6,#REF!*D102) -> 0
B103: 92 | E103: =IF(ISNUMBER($D$6),D103*$D$6,#REF!*D103) -> 0
B104: 93 | E104: =IF(ISNUMBER($D$6),D104*$D$6,#REF!*D104) -> 0
B105: 94 | E105: =IF(ISNUMBER($D$6),D105*$D$6,#REF!*D105) -> 0
B106: 95 | E106: =IF(ISNUMBER($D$6),D106*$D$6,#REF!*D106) -> 0
B107: 96 | E107: =IF(ISNUMBER($D$6),D107*$D$6,#REF!*D107) -> 0
B108: 97 | E108: =IF(ISNUMBER($D$6),D108*$D$6,#REF!*D108) -> 0
B109: 98 | E109: =IF(ISNUMBER($D$6),D109*$D$6,#REF!*D109) -> 0
B110: 99 | E110: =IF(ISNUMBER($D$6),D110*$D$6,#REF!*D110) -> 0
B111: 100 | E111: =IF(ISNUMBER($D$6),D111*$D$6,#REF!*D111) -> 0
B112: 101 | E112: =IF(ISNUMBER($D$6),D112*$D$6,#REF!*D112) -> 0
B113: 102 | E113: =IF(ISNUMBER($D$6),D113*$D$6,#REF!*D113) -> 0
B114: 103 | E114: =IF(ISNUMBER($D$6),D114*$D$6,#REF!*D114) -> 0
B115: 104 | E115: =IF(ISNUMBER($D$6),D115*$D$6,#REF!*D115) -> 0
B116: 105 | E116: =IF(ISNUMBER($D$6),D116*$D$6,#REF!*D116) -> 0
B117: 106 | E117: =IF(ISNUMBER($D$6),D117*$D$6,#REF!*D117) -> 0
B118: 107 | E118: =IF(ISNUMBER($D$6),D118*$D$6,#REF!*D118) -> 0
B119: 108 | E119: =IF(ISNUMBER($D$6),D119*$D$6,#REF!*D119) -> 0
B120: 109 | E120: =IF(ISNUMBER($D$6),D120*$D$6,#REF!*D120) -> 0
B121: 110 | E121: =IF(ISNUMBER($D$6),D121*$D$6,#REF!*D121) -> 0
B122: 111 | E122: =IF(ISNUMBER($D$6),D122*$D$6,#REF!*D122) -> 0
B123: 112 | E123: =IF(ISNUMBER($D$6),D123*$D$6,#REF!*D123) -> 0
B124: 113 | E124: =IF(ISNUMBER($D$6),D124*$D$6,#REF!*D124) -> 0
B125: 114 | E125: =IF(ISNUMBER($D$6),D125*$D$6,#REF!*D125) -> 0
B126: 115 | E126: =IF(ISNUMBER($D$6),D126*$D$6,#REF!*D126) -> 0
B127: 116 | E127: =IF(ISNUMBER($D$6),D127*$D$6,#REF!*D127) -> 0
B128: 117 | E128: =IF(ISNUMBER($D$6),D128*$D$6,#REF!*D128) -> 0
B129: 118 | E129: =IF(ISNUMBER($D$6),D129*$D$6,#REF!*D129) -> 0
B130: 119 | E130: =IF(ISNUMBER($D$6),D130*$D$6,#REF!*D130) -> 0
B131: 120 | E131: =IF(ISNUMBER($D$6),D131*$D$6,#REF!*D131) -> 0
B132: 121 | E132: =IF(ISNUMBER($D$6),D132*$D$6,#REF!*D132) -> 0
B133: 122 | E133: =IF(ISNUMBER($D$6),D133*$D$6,#REF!*D133) -> 0
B134: 123 | E134: =IF(ISNUMBER($D$6),D134*$D$6,#REF!*D134) -> 0
B135: 124 | E135: =IF(ISNUMBER($D$6),D135*$D$6,#REF!*D135) -> 0
B136: 125 | E136: =IF(ISNUMBER($D$6),D136*$D$6,#REF!*D136) -> 0
B137: 126 | E137: =IF(ISNUMBER($D$6),D137*$D$6,#REF!*D137) -> 0
B138: 127 | E138: =IF(ISNUMBER($D$6),D138*$D$6,#REF!*D138) -> 0
B139: 128 | E139: =IF(ISNUMBER($D$6),D139*$D$6,#REF!*D139) -> 0
B140: 129 | E140: =IF(ISNUMBER($D$6),D140*$D$6,#REF!*D140) -> 0
B141: 130 | E141: =IF(ISNUMBER($D$6),D141*$D$6,#REF!*D141) -> 0
B142: =+B141+1 -> 131 | E142: =IF(ISNUMBER($D$6),D142*$D$6,#REF!*D142) -> 0
B143: 132 | E143: =IF(ISNUMBER($D$6),D143*$D$6,#REF!*D143) -> 0
B144: 133 | E144: =IF(ISNUMBER($D$6),D144*$D$6,#REF!*D144) -> 0
B145: 134 | E145: =IF(ISNUMBER($D$6),D145*$D$6,#REF!*D145) -> 0
B146: 135 | E146: =IF(ISNUMBER($D$6),D146*$D$6,#REF!*D146) -> 0
B147: 136 | E147: =IF(ISNUMBER($D$6),D147*$D$6,#REF!*D147) -> 0
B148: 137 | E148: =IF(ISNUMBER($D$6),D148*$D$6,#REF!*D148) -> 0
B149: 138 | E149: =IF(ISNUMBER($D$6),D149*$D$6,#REF!*D149) -> 0
B150: 139 | E150: =IF(ISNUMBER($D$6),D150*$D$6,#REF!*D150) -> 0
B151: 140 | E151: =IF(ISNUMBER($D$6),D151*$D$6,#REF!*D151) -> 0
B152: 141 | E152: =IF(ISNUMBER($D$6),D152*$D$6,#REF!*D152) -> 0
B153: 142 | E153: =IF(ISNUMBER($D$6),D153*$D$6,#REF!*D153) -> 0
B154: 143 | E154: =IF(ISNUMBER($D$6),D154*$D$6,#REF!*D154) -> 0
B155: 144 | E155: =IF(ISNUMBER($D$6),D155*$D$6,#REF!*D155) -> 0
B156: 145 | E156: =IF(ISNUMBER($D$6),D156*$D$6,#REF!*D156) -> 0
B157: 146 | E157: =IF(ISNUMBER($D$6),D157*$D$6,#REF!*D157) -> 0
B158: 147 | E158: =IF(ISNUMBER($D$6),D158*$D$6,#REF!*D158) -> 0
B159: 148 | E159: =IF(ISNUMBER($D$6),D159*$D$6,#REF!*D159) -> 0
B160: 149 | E160: =IF(ISNUMBER($D$6),D160*$D$6,#REF!*D160) -> 0
B161: 150 | E161: =IF(ISNUMBER($D$6),D161*$D$6,#REF!*D161) -> 0
B162: 151 | E162: =IF(ISNUMBER($D$6),D162*$D$6,#REF!*D162) -> 0
B163: 152 | E163: =IF(ISNUMBER($D$6),D163*$D$6,#REF!*D163) -> 0
B164: 153 | E164: =IF(ISNUMBER($D$6),D164*$D$6,#REF!*D164) -> 0
B165: 154 | E165: =IF(ISNUMBER($D$6),D165*$D$6,#REF!*D165) -> 0
B166: 155 | E166: =IF(ISNUMBER($D$6),D166*$D$6,#REF!*D166) -> 0
B167: 156 | E167: =IF(ISNUMBER($D$6),D167*$D$6,#REF!*D167) -> 0
B168: 157 | E168: =IF(ISNUMBER($D$6),D168*$D$6,#REF!*D168) -> 0
B169: 158 | E169: =IF(ISNUMBER($D$6),D169*$D$6,#REF!*D169) -> 0
B170: 159 | E170: =IF(ISNUMBER($D$6),D170*$D$6,#REF!*D170) -> 0
B171: 160 | E171: =IF(ISNUMBER($D$6),D171*$D$6,#REF!*D171) -> 0
B172: 161 | E172: =IF(ISNUMBER($D$6),D172*$D$6,#REF!*D172) -> 0
B173: 162 | E173: =IF(ISNUMBER($D$6),D173*$D$6,#REF!*D173) -> 0
B174: 163 | E174: =IF(ISNUMBER($D$6),D174*$D$6,#REF!*D174) -> 0
B175: 164 | E175: =IF(ISNUMBER($D$6),D175*$D$6,#REF!*D175) -> 0
B176: 165 | E176: =IF(ISNUMBER($D$6),D176*$D$6,#REF!*D176) -> 0
B177: 166 | E177: =IF(ISNUMBER($D$6),D177*$D$6,#REF!*D177) -> 0
B178: 167 | E178: =IF(ISNUMBER($D$6),D178*$D$6,#REF!*D178) -> 0
B179: 168 | E179: =IF(ISNUMBER($D$6),D179*$D$6,#REF!*D179) -> 0
B180: 169 | E180: =IF(ISNUMBER($D$6),D180*$D$6,#REF!*D180) -> 0
B181: 170 | E181: =IF(ISNUMBER($D$6),D181*$D$6,#REF!*D181) -> 0
B182: 171 | E182: =IF(ISNUMBER($D$6),D182*$D$6,#REF!*D182) -> 0
B183: 172 | E183: =IF(ISNUMBER($D$6),D183*$D$6,#REF!*D183) -> 0
B184: 173 | E184: =IF(ISNUMBER($D$6),D184*$D$6,#REF!*D184) -> 0
B185: 174 | E185: =IF(ISNUMBER($D$6),D185*$D$6,#REF!*D185) -> 0
B186: 175 | E186: =IF(ISNUMBER($D$6),D186*$D$6,#REF!*D186) -> 0
B187: 176 | E187: =IF(ISNUMBER($D$6),D187*$D$6,#REF!*D187) -> 0
B188: 177 | E188: =IF(ISNUMBER($D$6),D188*$D$6,#REF!*D188) -> 0
B189: 178 | E189: =IF(ISNUMBER($D$6),D189*$D$6,#REF!*D189) -> 0
B190: 179 | E190: =IF(ISNUMBER($D$6),D190*$D$6,#REF!*D190) -> 0
B191: 180 | E191: =IF(ISNUMBER($D$6),D191*$D$6,#REF!*D191) -> 0
B192: 181 | E192: =IF(ISNUMBER($D$6),D192*$D$6,#REF!*D192) -> 0
B193: 182 | E193: =IF(ISNUMBER($D$6),D193*$D$6,#REF!*D193) -> 0
B194: 183 | E194: =IF(ISNUMBER($D$6),D194*$D$6,#REF!*D194) -> 0
B195: 184 | E195: =IF(ISNUMBER($D$6),D195*$D$6,#REF!*D195) -> 0
B196: 185 | E196: =IF(ISNUMBER($D$6),D196*$D$6,#REF!*D196) -> 0
B197: 186 | E197: =IF(ISNUMBER($D$6),D197*$D$6,#REF!*D197) -> 0
B198: 187 | E198: =IF(ISNUMBER($D$6),D198*$D$6,#REF!*D198) -> 0
B199: 188 | E199: =IF(ISNUMBER($D$6),D199*$D$6,#REF!*D199) -> 0
B200: 189 | E200: =IF(ISNUMBER($D$6),D200*$D$6,#REF!*D200) -> 0
B201: 190 | E201: =IF(ISNUMBER($D$6),D201*$D$6,#REF!*D201) -> 0
B202: 191 | E202: =IF(ISNUMBER($D$6),D202*$D$6,#REF!*D202) -> 0
B203: 192 | E203: =IF(ISNUMBER($D$6),D203*$D$6,#REF!*D203) -> 0
B204: 193 | E204: =IF(ISNUMBER($D$6),D204*$D$6,#REF!*D204) -> 0
B205: 194 | E205: =IF(ISNUMBER($D$6),D205*$D$6,#REF!*D205) -> 0
B206: =+B205+1 -> 195 | E206: =IF(ISNUMBER($D$6),D206*$D$6,#REF!*D206) -> 0
... 805 more rows

Sheet Pontos de Monitorização4 (hidden)
B2: SISTEMAS DE QUANTIFICAÇÃO, MONITORIZAÇÃO CONTÍNUA E GESTÃO DE ENERGIA
B5: Identifique a fonte de energia: | D5: =+Economias!E49 -> 0 | E5: (t)
B6: Fator de conversão: | D6: =+Economias!E52 -> 0 | E6: ="tep/"&$E$5&"" -> tep/(t)
B8: Indique o número total de pontos a monitorizar:
B11: número do ponto de monitorização | C11: Identificação do ponto de monitorização | D11: =IF(D5="Energia elétrica","Utilização anual de "&$D$5&" (kWh/ano)","Utilização anual de "&$D$5&" (t/ano)") -> Utilização anual de 0 (t/ano) | E11: Consumo energético referente ao ano de referência (tep/ano)
B12: 1 | E12: =IF(ISNUMBER($D$6),D12*$D$6,#REF!*D12) -> 0
B13: =+B12+1 -> 2 | E13: =IF(ISNUMBER($D$6),D13*$D$6,#REF!*D13) -> 0
B14: =+B13+1 -> 3 | E14: =IF(ISNUMBER($D$6),D14*$D$6,#REF!*D14) -> 0
B15: 4 | E15: =IF(ISNUMBER($D$6),D15*$D$6,#REF!*D15) -> 0
B16: 5 | E16: =IF(ISNUMBER($D$6),D16*$D$6,#REF!*D16) -> 0
B17: 6 | E17: =IF(ISNUMBER($D$6),D17*$D$6,#REF!*D17) -> 0
B18: 7 | E18: =IF(ISNUMBER($D$6),D18*$D$6,#REF!*D18) -> 0
B19: 8 | E19: =IF(ISNUMBER($D$6),D19*$D$6,#REF!*D19) -> 0
B20: 9 | E20: =IF(ISNUMBER($D$6),D20*$D$6,#REF!*D20) -> 0
B21: 10 | E21: =IF(ISNUMBER($D$6),D21*$D$6,#REF!*D21) -> 0
B22: 11 | E22: =IF(ISNUMBER($D$6),D22*$D$6,#REF!*D22) -> 0
B23: 12 | E23: =IF(ISNUMBER($D$6),D23*$D$6,#REF!*D23) -> 0
B24: 13 | E24: =IF(ISNUMBER($D$6),D24*$D$6,#REF!*D24) -> 0
B25: 14 | E25: =IF(ISNUMBER($D$6),D25*$D$6,#REF!*D25) -> 0
B26: 15 | E26: =IF(ISNUMBER($D$6),D26*$D$6,#REF!*D26) -> 0
B27: 16 | E27: =IF(ISNUMBER($D$6),D27*$D$6,#REF!*D27) -> 0
B28: 17 | E28: =IF(ISNUMBER($D$6),D28*$D$6,#REF!*D28) -> 0
B29: 18 | E29: =IF(ISNUMBER($D$6),D29*$D$6,#REF!*D29) -> 0
B30: 19 | E30: =IF(ISNUMBER($D$6),D30*$D$6,#REF!*D30) -> 0
B31: 20 | E31: =IF(ISNUMBER($D$6),D31*$D$6,#REF!*D31) -> 0
B32: 21 | E32: =IF(ISNUMBER($D$6),D32*$D$6,#REF!*D32) -> 0
B33: 22 | E33: =IF(ISNUMBER($D$6),D33*$D$6,#REF!*D33) -> 0
B34: 23 | E34: =IF(ISNUMBER($D$6),D34*$D$6,#REF!*D34) -> 0
B35: 24 | E35: =IF(ISNUMBER($D$6),D35*$D$6,#REF!*D35) -> 0
B36: 25 | E36: =IF(ISNUMBER($D$6),D36*$D$6,#REF!*D36) -> 0
B37: 26 | E37: =IF(ISNUMBER($D$6),D37*$D$6,#REF!*D37) -> 0
B38: 27 | E38: =IF(ISNUMBER($D$6),D38*$D$6,#REF!*D38) -> 0
B39: 28 | E39: =IF(ISNUMBER($D$6),D39*$D$6,#REF!*D39) -> 0
B40: 29 | E40: =IF(ISNUMBER($D$6),D40*$D$6,#REF!*D40) -> 0
B41: 30 | E41: =IF(ISNUMBER($D$6),D41*$D$6,#REF!*D41) -> 0
B42: 31 | E42: =IF(ISNUMBER($D$6),D42*$D$6,#REF!*D42) -> 0
B43: 32 | E43: =IF(ISNUMBER($D$6),D43*$D$6,#REF!*D43) -> 0
B44: 33 | E44: =IF(ISNUMBER($D$6),D44*$D$6,#REF!*D44) -> 0
B45: 34 | E45: =IF(ISNUMBER($D$6),D45*$D$6,#REF!*D45) -> 0
B46: 35 | E46: =IF(ISNUMBER($D$6),D46*$D$6,#REF!*D46) -> 0
B47: 36 | E47: =IF(ISNUMBER($D$6),D47*$D$6,#REF!*D47) -> 0
B48: 37 | E48: =IF(ISNUMBER($D$6),D48*$D$6,#REF!*D48) -> 0
B49: 38 | E49: =IF(ISNUMBER($D$6),D49*$D$6,#REF!*D49) -> 0
B50: 39 | E50: =IF(ISNUMBER($D$6),D50*$D$6,#REF!*D50) -> 0
B51: 40 | E51: =IF(ISNUMBER($D$6),D51*$D$6,#REF!*D51) -> 0
B52: 41 | E52: =IF(ISNUMBER($D$6),D52*$D$6,#REF!*D52) -> 0
B53: 42 | E53: =IF(ISNUMBER($D$6),D53*$D$6,#REF!*D53) -> 0
B54: 43 | E54: =IF(ISNUMBER($D$6),D54*$D$6,#REF!*D54) -> 0
B55: 44 | E55: =IF(ISNUMBER($D$6),D55*$D$6,#REF!*D55) -> 0
B56: 45 | E56: =IF(ISNUMBER($D$6),D56*$D$6,#REF!*D56) -> 0
B57: 46 | E57: =IF(ISNUMBER($D$6),D57*$D$6,#REF!*D57) -> 0
B58: 47 | E58: =IF(ISNUMBER($D$6),D58*$D$6,#REF!*D58) -> 0
B59: 48 | E59: =IF(ISNUMBER($D$6),D59*$D$6,#REF!*D59) -> 0
B60: 49 | E60: =IF(ISNUMBER($D$6),D60*$D$6,#REF!*D60) -> 0
B61: 50 | E61: =IF(ISNUMBER($D$6),D61*$D$6,#REF!*D61) -> 0
B62: 51 | E62: =IF(ISNUMBER($D$6),D62*$D$6,#REF!*D62) -> 0
B63: 52 | E63: =IF(ISNUMBER($D$6),D63*$D$6,#REF!*D63) -> 0
B64: 53 | E64: =IF(ISNUMBER($D$6),D64*$D$6,#REF!*D64) -> 0
B65: 54 | E65: =IF(ISNUMBER($D$6),D65*$D$6,#REF!*D65) -> 0
B66: 55 | E66: =IF(ISNUMBER($D$6),D66*$D$6,#REF!*D66) -> 0
B67: 56 | E67: =IF(ISNUMBER($D$6),D67*$D$6,#REF!*D67) -> 0
B68: 57 | E68: =IF(ISNUMBER($D$6),D68*$D$6,#REF!*D68) -> 0
B69: 58 | E69: =IF(ISNUMBER($D$6),D69*$D$6,#REF!*D69) -> 0
B70: 59 | E70: =IF(ISNUMBER($D$6),D70*$D$6,#REF!*D70) -> 0
B71: 60 | E71: =IF(ISNUMBER($D$6),D71*$D$6,#REF!*D71) -> 0
B72: 61 | E72: =IF(ISNUMBER($D$6),D72*$D$6,#REF!*D72) -> 0
B73: 62 | E73: =IF(ISNUMBER($D$6),D73*$D$6,#REF!*D73) -> 0
B74: 63 | E74: =IF(ISNUMBER($D$6),D74*$D$6,#REF!*D74) -> 0
B75: 64 | E75: =IF(ISNUMBER($D$6),D75*$D$6,#REF!*D75) -> 0
B76: 65 | E76: =IF(ISNUMBER($D$6),D76*$D$6,#REF!*D76) -> 0
B77: 66 | E77: =IF(ISNUMBER($D$6),D77*$D$6,#REF!*D77) -> 0
B78: =+B77+1 -> 67 | E78: =IF(ISNUMBER($D$6),D78*$D$6,#REF!*D78) -> 0
B79: 68 | E79: =IF(ISNUMBER($D$6),D79*$D$6,#REF!*D79) -> 0
B80: 69 | E80: =IF(ISNUMBER($D$6),D80*$D$6,#REF!*D80) -> 0
B81: 70 | E81: =IF(ISNUMBER($D$6),D81*$D$6,#REF!*D81) -> 0
B82: 71 | E82: =IF(ISNUMBER($D$6),D82*$D$6,#REF!*D82) -> 0
B83: 72 | E83: =IF(ISNUMBER($D$6),D83*$D$6,#REF!*D83) -> 0
B84: 73 | E84: =IF(ISNUMBER($D$6),D84*$D$6,#REF!*D84) -> 0
B85: 74 | E85: =IF(ISNUMBER($D$6),D85*$D$6,#REF!*D85) -> 0
B86: 75 | E86: =IF(ISNUMBER($D$6),D86*$D$6,#REF!*D86) -> 0
B87: 76 | E87: =IF(ISNUMBER($D$6),D87*$D$6,#REF!*D87) -> 0
B88: 77 | E88: =IF(ISNUMBER($D$6),D88*$D$6,#REF!*D88) -> 0
B89: 78 | E89: =IF(ISNUMBER($D$6),D89*$D$6,#REF!*D89) -> 0
B90: 79 | E90: =IF(ISNUMBER($D$6),D90*$D$6,#REF!*D90) -> 0
B91: 80 | E91: =IF(ISNUMBER($D$6),D91*$D$6,#REF!*D91) -> 0
B92: 81 | E92: =IF(ISNUMBER($D$6),D92*$D$6,#REF!*D92) -> 0
B93: 82 | E93: =IF(ISNUMBER($D$6),D93*$D$6,#REF!*D93) -> 0
B94: 83 | E94: =IF(ISNUMBER($D$6),D94*$D$6,#REF!*D94) -> 0
B95: 84 | E95: =IF(ISNUMBER($D$6),D95*$D$6,#REF!*D95) -> 0
B96: 85 | E96: =IF(ISNUMBER($D$6),D96*$D$6,#REF!*D96) -> 0
B97: 86 | E97: =IF(ISNUMBER($D$6),D97*$D$6,#REF!*D97) -> 0
B98: 87 | E98: =IF(ISNUMBER($D$6),D98*$D$6,#REF!*D98) -> 0
B99: 88 | E99: =IF(ISNUMBER($D$6),D99*$D$6,#REF!*D99) -> 0
B100: 89 | E100: =IF(ISNUMBER($D$6),D100*$D$6,#REF!*D100) -> 0
B101: 90 | E101: =IF(ISNUMBER($D$6),D101*$D$6,#REF!*D101) -> 0
B102: 91 | E102: =IF(ISNUMBER($D$6),D102*$D$6,#REF!*D102) -> 0
B103: 92 | E103: =IF(ISNUMBER($D$6),D103*$D$6,#REF!*D103) -> 0
B104: 93 | E104: =IF(ISNUMBER($D$6),D104*$D$6,#REF!*D104) -> 0
B105: 94 | E105: =IF(ISNUMBER($D$6),D105*$D$6,#REF!*D105) -> 0
B106: 95 | E106: =IF(ISNUMBER($D$6),D106*$D$6,#REF!*D106) -> 0
B107: 96 | E107: =IF(ISNUMBER($D$6),D107*$D$6,#REF!*D107) -> 0
B108: 97 | E108: =IF(ISNUMBER($D$6),D108*$D$6,#REF!*D108) -> 0
B109: 98 | E109: =IF(ISNUMBER($D$6),D109*$D$6,#REF!*D109) -> 0
B110: 99 | E110: =IF(ISNUMBER($D$6),D110*$D$6,#REF!*D110) -> 0
B111: 100 | E111: =IF(ISNUMBER($D$6),D111*$D$6,#REF!*D111) -> 0
B112: 101 | E112: =IF(ISNUMBER($D$6),D112*$D$6,#REF!*D112) -> 0
B113: 102 | E113: =IF(ISNUMBER($D$6),D113*$D$6,#REF!*D113) -> 0
B114: 103 | E114: =IF(ISNUMBER($D$6),D114*$D$6,#REF!*D114) -> 0
B115: 104 | E115: =IF(ISNUMBER($D$6),D115*$D$6,#REF!*D115) -> 0
B116: 105 | E116: =IF(ISNUMBER($D$6),D116*$D$6,#REF!*D116) -> 0
B117: 106 | E117: =IF(ISNUMBER($D$6),D117*$D$6,#REF!*D117) -> 0
B118: 107 | E118: =IF(ISNUMBER($D$6),D118*$D$6,#REF!*D118) -> 0
B119: 108 | E119: =IF(ISNUMBER($D$6),D119*$D$6,#REF!*D119) -> 0
B120: 109 | E120: =IF(ISNUMBER($D$6),D120*$D$6,#REF!*D120) -> 0
B121: 110 | E121: =IF(ISNUMBER($D$6),D121*$D$6,#REF!*D121) -> 0
B122: 111 | E122: =IF(ISNUMBER($D$6),D122*$D$6,#REF!*D122) -> 0
B123: 112 | E123: =IF(ISNUMBER($D$6),D123*$D$6,#REF!*D123) -> 0
B124: 113 | E124: =IF(ISNUMBER($D$6),D124*$D$6,#REF!*D124) -> 0
B125: 114 | E125: =IF(ISNUMBER($D$6),D125*$D$6,#REF!*D125) -> 0
B126: 115 | E126: =IF(ISNUMBER($D$6),D126*$D$6,#REF!*D126) -> 0
B127: 116 | E127: =IF(ISNUMBER($D$6),D127*$D$6,#REF!*D127) -> 0
B128: 117 | E128: =IF(ISNUMBER($D$6),D128*$D$6,#REF!*D128) -> 0
B129: 118 | E129: =IF(ISNUMBER($D$6),D129*$D$6,#REF!*D129) -> 0
B130: 119 | E130: =IF(ISNUMBER($D$6),D130*$D$6,#REF!*D130) -> 0
B131: 120 | E131: =IF(ISNUMBER($D$6),D131*$D$6,#REF!*D131) -> 0
B132: 121 | E132: =IF(ISNUMBER($D$6),D132*$D$6,#REF!*D132) -> 0
B133: 122 | E133: =IF(ISNUMBER($D$6),D133*$D$6,#REF!*D133) -> 0
B134: 123 | E134: =IF(ISNUMBER($D$6),D134*$D$6,#REF!*D134) -> 0
B135: 124 | E135: =IF(ISNUMBER($D$6),D135*$D$6,#REF!*D135) -> 0
B136: 125 | E136: =IF(ISNUMBER($D$6),D136*$D$6,#REF!*D136) -> 0
B137: 126 | E137: =IF(ISNUMBER($D$6),D137*$D$6,#REF!*D137) -> 0
B138: 127 | E138: =IF(ISNUMBER($D$6),D138*$D$6,#REF!*D138) -> 0
B139: 128 | E139: =IF(ISNUMBER($D$6),D139*$D$6,#REF!*D139) -> 0
B140: 129 | E140: =IF(ISNUMBER($D$6),D140*$D$6,#REF!*D140) -> 0
B141: 130 | E141: =IF(ISNUMBER($D$6),D141*$D$6,#REF!*D141) -> 0
B142: =+B141+1 -> 131 | E142: =IF(ISNUMBER($D$6),D142*$D$6,#REF!*D142) -> 0
B143: 132 | E143: =IF(ISNUMBER($D$6),D143*$D$6,#REF!*D143) -> 0
B144: 133 | E144: =IF(ISNUMBER($D$6),D144*$D$6,#REF!*D144) -> 0
B145: 134 | E145: =IF(ISNUMBER($D$6),D145*$D$6,#REF!*D145) -> 0
B146: 135 | E146: =IF(ISNUMBER($D$6),D146*$D$6,#REF!*D146) -> 0
B147: 136 | E147: =IF(ISNUMBER($D$6),D147*$D$6,#REF!*D147) -> 0
B148: 137 | E148: =IF(ISNUMBER($D$6),D148*$D$6,#REF!*D148) -> 0
B149: 138 | E149: =IF(ISNUMBER($D$6),D149*$D$6,#REF!*D149) -> 0
B150: 139 | E150: =IF(ISNUMBER($D$6),D150*$D$6,#REF!*D150) -> 0
B151: 140 | E151: =IF(ISNUMBER($D$6),D151*$D$6,#REF!*D151) -> 0
B152: 141 | E152: =IF(ISNUMBER($D$6),D152*$D$6,#REF!*D152) -> 0
B153: 142 | E153: =IF(ISNUMBER($D$6),D153*$D$6,#REF!*D153) -> 0
B154: 143 | E154: =IF(ISNUMBER($D$6),D154*$D$6,#REF!*D154) -> 0
B155: 144 | E155: =IF(ISNUMBER($D$6),D155*$D$6,#REF!*D155) -> 0
B156: 145 | E156: =IF(ISNUMBER($D$6),D156*$D$6,#REF!*D156) -> 0
B157: 146 | E157: =IF(ISNUMBER($D$6),D157*$D$6,#REF!*D157) -> 0
B158: 147 | E158: =IF(ISNUMBER($D$6),D158*$D$6,#REF!*D158) -> 0
B159: 148 | E159: =IF(ISNUMBER($D$6),D159*$D$6,#REF!*D159) -> 0
B160: 149 | E160: =IF(ISNUMBER($D$6),D160*$D$6,#REF!*D160) -> 0
B161: 150 | E161: =IF(ISNUMBER($D$6),D161*$D$6,#REF!*D161) -> 0
B162: 151 | E162: =IF(ISNUMBER($D$6),D162*$D$6,#REF!*D162) -> 0
B163: 152 | E163: =IF(ISNUMBER($D$6),D163*$D$6,#REF!*D163) -> 0
B164: 153 | E164: =IF(ISNUMBER($D$6),D164*$D$6,#REF!*D164) -> 0
B165: 154 | E165: =IF(ISNUMBER($D$6),D165*$D$6,#REF!*D165) -> 0
B166: 155 | E166: =IF(ISNUMBER($D$6),D166*$D$6,#REF!*D166) -> 0
B167: 156 | E167: =IF(ISNUMBER($D$6),D167*$D$6,#REF!*D167) -> 0
B168: 157 | E168: =IF(ISNUMBER($D$6),D168*$D$6,#REF!*D168) -> 0
B169: 158 | E169: =IF(ISNUMBER($D$6),D169*$D$6,#REF!*D169) -> 0
B170: 159 | E170: =IF(ISNUMBER($D$6),D170*$D$6,#REF!*D170) -> 0
B171: 160 | E171: =IF(ISNUMBER($D$6),D171*$D$6,#REF!*D171) -> 0
B172: 161 | E172: =IF(ISNUMBER($D$6),D172*$D$6,#REF!*D172) -> 0
B173: 162 | E173: =IF(ISNUMBER($D$6),D173*$D$6,#REF!*D173) -> 0
B174: 163 | E174: =IF(ISNUMBER($D$6),D174*$D$6,#REF!*D174) -> 0
B175: 164 | E175: =IF(ISNUMBER($D$6),D175*$D$6,#REF!*D175) -> 0
B176: 165 | E176: =IF(ISNUMBER($D$6),D176*$D$6,#REF!*D176) -> 0
B177: 166 | E177: =IF(ISNUMBER($D$6),D177*$D$6,#REF!*D177) -> 0
B178: 167 | E178: =IF(ISNUMBER($D$6),D178*$D$6,#REF!*D178) -> 0
B179: 168 | E179: =IF(ISNUMBER($D$6),D179*$D$6,#REF!*D179) -> 0
B180: 169 | E180: =IF(ISNUMBER($D$6),D180*$D$6,#REF!*D180) -> 0
B181: 170 | E181: =IF(ISNUMBER($D$6),D181*$D$6,#REF!*D181) -> 0
B182: 171 | E182: =IF(ISNUMBER($D$6),D182*$D$6,#REF!*D182) -> 0
B183: 172 | E183: =IF(ISNUMBER($D$6),D183*$D$6,#REF!*D183) -> 0
B184: 173 | E184: =IF(ISNUMBER($D$6),D184*$D$6,#REF!*D184) -> 0
B185: 174 | E185: =IF(ISNUMBER($D$6),D185*$D$6,#REF!*D185) -> 0
B186: 175 | E186: =IF(ISNUMBER($D$6),D186*$D$6,#REF!*D186) -> 0
B187: 176 | E187: =IF(ISNUMBER($D$6),D187*$D$6,#REF!*D187) -> 0
B188: 177 | E188: =IF(ISNUMBER($D$6),D188*$D$6,#REF!*D188) -> 0
B189: 178 | E189: =IF(ISNUMBER($D$6),D189*$D$6,#REF!*D189) -> 0
B190: 179 | E190: =IF(ISNUMBER($D$6),D190*$D$6,#REF!*D190) -> 0
B191: 180 | E191: =IF(ISNUMBER($D$6),D191*$D$6,#REF!*D191) -> 0
B192: 181 | E192: =IF(ISNUMBER($D$6),D192*$D$6,#REF!*D192) -> 0
B193: 182 | E193: =IF(ISNUMBER($D$6),D193*$D$6,#REF!*D193) -> 0
B194: 183 | E194: =IF(ISNUMBER($D$6),D194*$D$6,#REF!*D194) -> 0
B195: 184 | E195: =IF(ISNUMBER($D$6),D195*$D$6,#REF!*D195) -> 0
B196: 185 | E196: =IF(ISNUMBER($D$6),D196*$D$6,#REF!*D196) -> 0
B197: 186 | E197: =IF(ISNUMBER($D$6),D197*$D$6,#REF!*D197) -> 0
B198: 187 | E198: =IF(ISNUMBER($D$6),D198*$D$6,#REF!*D198) -> 0
B199: 188 | E199: =IF(ISNUMBER($D$6),D199*$D$6,#REF!*D199) -> 0
B200: 189 | E200: =IF(ISNUMBER($D$6),D200*$D$6,#REF!*D200) -> 0
B201: 190 | E201: =IF(ISNUMBER($D$6),D201*$D$6,#REF!*D201) -> 0
B202: 191 | E202: =IF(ISNUMBER($D$6),D202*$D$6,#REF!*D202) -> 0
B203: 192 | E203: =IF(ISNUMBER($D$6),D203*$D$6,#REF!*D203) -> 0
B204: 193 | E204: =IF(ISNUMBER($D$6),D204*$D$6,#REF!*D204) -> 0
B205: 194 | E205: =IF(ISNUMBER($D$6),D205*$D$6,#REF!*D205) -> 0
B206: =+B205+1 -> 195 | E206: =IF(ISNUMBER($D$6),D206*$D$6,#REF!*D206) -> 0
... 805 more rows

Sheet Pontos de Monitorização5 (hidden)
B2: SISTEMAS DE QUANTIFICAÇÃO, MONITORIZAÇÃO CONTÍNUA E GESTÃO DE ENERGIA
B5: Identifique a fonte de energia: | D5: =+Economias!E63 -> 0 | E5: (t)
B6: Fator de conversão: | D6: =+Economias!E66 -> 0 | E6: ="tep/"&$E$5&"" -> tep/(t)
B8: Indique o número total de pontos a monitorizar:
B11: número do ponto de monitorização | C11: Identificação do ponto de monitorização | D11: =IF(D5="Energia elétrica","Utilização anual de "&$D$5&" (kWh/ano)","Utilização anual de "&$D$5&" (t/ano)") -> Utilização anual de 0 (t/ano) | E11: Consumo energético referente ao ano de referência (tep/ano)
B12: 1 | E12: =IF(ISNUMBER($D$6),D12*$D$6,#REF!*D12) -> 0
B13: =+B12+1 -> 2 | E13: =IF(ISNUMBER($D$6),D13*$D$6,#REF!*D13) -> 0
B14: =+B13+1 -> 3 | E14: =IF(ISNUMBER($D$6),D14*$D$6,#REF!*D14) -> 0
B15: 4 | E15: =IF(ISNUMBER($D$6),D15*$D$6,#REF!*D15) -> 0
B16: 5 | E16: =IF(ISNUMBER($D$6),D16*$D$6,#REF!*D16) -> 0
B17: 6 | E17: =IF(ISNUMBER($D$6),D17*$D$6,#REF!*D17) -> 0
B18: 7 | E18: =IF(ISNUMBER($D$6),D18*$D$6,#REF!*D18) -> 0
B19: 8 | E19: =IF(ISNUMBER($D$6),D19*$D$6,#REF!*D19) -> 0
B20: 9 | E20: =IF(ISNUMBER($D$6),D20*$D$6,#REF!*D20) -> 0
B21: 10 | E21: =IF(ISNUMBER($D$6),D21*$D$6,#REF!*D21) -> 0
B22: 11 | E22: =IF(ISNUMBER($D$6),D22*$D$6,#REF!*D22) -> 0
B23: 12 | E23: =IF(ISNUMBER($D$6),D23*$D$6,#REF!*D23) -> 0
B24: 13 | E24: =IF(ISNUMBER($D$6),D24*$D$6,#REF!*D24) -> 0
B25: 14 | E25: =IF(ISNUMBER($D$6),D25*$D$6,#REF!*D25) -> 0
B26: 15 | E26: =IF(ISNUMBER($D$6),D26*$D$6,#REF!*D26) -> 0
B27: 16 | E27: =IF(ISNUMBER($D$6),D27*$D$6,#REF!*D27) -> 0
B28: 17 | E28: =IF(ISNUMBER($D$6),D28*$D$6,#REF!*D28) -> 0
B29: 18 | E29: =IF(ISNUMBER($D$6),D29*$D$6,#REF!*D29) -> 0
B30: 19 | E30: =IF(ISNUMBER($D$6),D30*$D$6,#REF!*D30) -> 0
B31: 20 | E31: =IF(ISNUMBER($D$6),D31*$D$6,#REF!*D31) -> 0
B32: 21 | E32: =IF(ISNUMBER($D$6),D32*$D$6,#REF!*D32) -> 0
B33: 22 | E33: =IF(ISNUMBER($D$6),D33*$D$6,#REF!*D33) -> 0
B34: 23 | E34: =IF(ISNUMBER($D$6),D34*$D$6,#REF!*D34) -> 0
B35: 24 | E35: =IF(ISNUMBER($D$6),D35*$D$6,#REF!*D35) -> 0
B36: 25 | E36: =IF(ISNUMBER($D$6),D36*$D$6,#REF!*D36) -> 0
B37: 26 | E37: =IF(ISNUMBER($D$6),D37*$D$6,#REF!*D37) -> 0
B38: 27 | E38: =IF(ISNUMBER($D$6),D38*$D$6,#REF!*D38) -> 0
B39: 28 | E39: =IF(ISNUMBER($D$6),D39*$D$6,#REF!*D39) -> 0
B40: 29 | E40: =IF(ISNUMBER($D$6),D40*$D$6,#REF!*D40) -> 0
B41: 30 | E41: =IF(ISNUMBER($D$6),D41*$D$6,#REF!*D41) -> 0
B42: 31 | E42: =IF(ISNUMBER($D$6),D42*$D$6,#REF!*D42) -> 0
B43: 32 | E43: =IF(ISNUMBER($D$6),D43*$D$6,#REF!*D43) -> 0
B44: 33 | E44: =IF(ISNUMBER($D$6),D44*$D$6,#REF!*D44) -> 0
B45: 34 | E45: =IF(ISNUMBER($D$6),D45*$D$6,#REF!*D45) -> 0
B46: 35 | E46: =IF(ISNUMBER($D$6),D46*$D$6,#REF!*D46) -> 0
B47: 36 | E47: =IF(ISNUMBER($D$6),D47*$D$6,#REF!*D47) -> 0
B48: 37 | E48: =IF(ISNUMBER($D$6),D48*$D$6,#REF!*D48) -> 0
B49: 38 | E49: =IF(ISNUMBER($D$6),D49*$D$6,#REF!*D49) -> 0
B50: 39 | E50: =IF(ISNUMBER($D$6),D50*$D$6,#REF!*D50) -> 0
B51: 40 | E51: =IF(ISNUMBER($D$6),D51*$D$6,#REF!*D51) -> 0
B52: 41 | E52: =IF(ISNUMBER($D$6),D52*$D$6,#REF!*D52) -> 0
B53: 42 | E53: =IF(ISNUMBER($D$6),D53*$D$6,#REF!*D53) -> 0
B54: 43 | E54: =IF(ISNUMBER($D$6),D54*$D$6,#REF!*D54) -> 0
B55: 44 | E55: =IF(ISNUMBER($D$6),D55*$D$6,#REF!*D55) -> 0
B56: 45 | E56: =IF(ISNUMBER($D$6),D56*$D$6,#REF!*D56) -> 0
B57: 46 | E57: =IF(ISNUMBER($D$6),D57*$D$6,#REF!*D57) -> 0
B58: 47 | E58: =IF(ISNUMBER($D$6),D58*$D$6,#REF!*D58) -> 0
B59: 48 | E59: =IF(ISNUMBER($D$6),D59*$D$6,#REF!*D59) -> 0
B60: 49 | E60: =IF(ISNUMBER($D$6),D60*$D$6,#REF!*D60) -> 0
B61: 50 | E61: =IF(ISNUMBER($D$6),D61*$D$6,#REF!*D61) -> 0
B62: 51 | E62: =IF(ISNUMBER($D$6),D62*$D$6,#REF!*D62) -> 0
B63: 52 | E63: =IF(ISNUMBER($D$6),D63*$D$6,#REF!*D63) -> 0
B64: 53 | E64: =IF(ISNUMBER($D$6),D64*$D$6,#REF!*D64) -> 0
B65: 54 | E65: =IF(ISNUMBER($D$6),D65*$D$6,#REF!*D65) -> 0
B66: 55 | E66: =IF(ISNUMBER($D$6),D66*$D$6,#REF!*D66) -> 0
B67: 56 | E67: =IF(ISNUMBER($D$6),D67*$D$6,#REF!*D67) -> 0
B68: 57 | E68: =IF(ISNUMBER($D$6),D68*$D$6,#REF!*D68) -> 0
B69: 58 | E69: =IF(ISNUMBER($D$6),D69*$D$6,#REF!*D69) -> 0
B70: 59 | E70: =IF(ISNUMBER($D$6),D70*$D$6,#REF!*D70) -> 0
B71: 60 | E71: =IF(ISNUMBER($D$6),D71*$D$6,#REF!*D71) -> 0
B72: 61 | E72: =IF(ISNUMBER($D$6),D72*$D$6,#REF!*D72) -> 0
B73: 62 | E73: =IF(ISNUMBER($D$6),D73*$D$6,#REF!*D73) -> 0
B74: 63 | E74: =IF(ISNUMBER($D$6),D74*$D$6,#REF!*D74) -> 0
B75: 64 | E75: =IF(ISNUMBER($D$6),D75*$D$6,#REF!*D75) -> 0
B76: 65 | E76: =IF(ISNUMBER($D$6),D76*$D$6,#REF!*D76) -> 0
B77: 66 | E77: =IF(ISNUMBER($D$6),D77*$D$6,#REF!*D77) -> 0
B78: =+B77+1 -> 67 | E78: =IF(ISNUMBER($D$6),D78*$D$6,#REF!*D78) -> 0
B79: 68 | E79: =IF(ISNUMBER($D$6),D79*$D$6,#REF!*D79) -> 0
B80: 69 | E80: =IF(ISNUMBER($D$6),D80*$D$6,#REF!*D80) -> 0
B81: 70 | E81: =IF(ISNUMBER($D$6),D81*$D$6,#REF!*D81) -> 0
B82: 71 | E82: =IF(ISNUMBER($D$6),D82*$D$6,#REF!*D82) -> 0
B83: 72 | E83: =IF(ISNUMBER($D$6),D83*$D$6,#REF!*D83) -> 0
B84: 73 | E84: =IF(ISNUMBER($D$6),D84*$D$6,#REF!*D84) -> 0
B85: 74 | E85: =IF(ISNUMBER($D$6),D85*$D$6,#REF!*D85) -> 0
B86: 75 | E86: =IF(ISNUMBER($D$6),D86*$D$6,#REF!*D86) -> 0
B87: 76 | E87: =IF(ISNUMBER($D$6),D87*$D$6,#REF!*D87) -> 0
B88: 77 | E88: =IF(ISNUMBER($D$6),D88*$D$6,#REF!*D88) -> 0
B89: 78 | E89: =IF(ISNUMBER($D$6),D89*$D$6,#REF!*D89) -> 0
B90: 79 | E90: =IF(ISNUMBER($D$6),D90*$D$6,#REF!*D90) -> 0
B91: 80 | E91: =IF(ISNUMBER($D$6),D91*$D$6,#REF!*D91) -> 0
B92: 81 | E92: =IF(ISNUMBER($D$6),D92*$D$6,#REF!*D92) -> 0
B93: 82 | E93: =IF(ISNUMBER($D$6),D93*$D$6,#REF!*D93) -> 0
B94: 83 | E94: =IF(ISNUMBER($D$6),D94*$D$6,#REF!*D94) -> 0
B95: 84 | E95: =IF(ISNUMBER($D$6),D95*$D$6,#REF!*D95) -> 0
B96: 85 | E96: =IF(ISNUMBER($D$6),D96*$D$6,#REF!*D96) -> 0
B97: 86 | E97: =IF(ISNUMBER($D$6),D97*$D$6,#REF!*D97) -> 0
B98: 87 | E98: =IF(ISNUMBER($D$6),D98*$D$6,#REF!*D98) -> 0
B99: 88 | E99: =IF(ISNUMBER($D$6),D99*$D$6,#REF!*D99) -> 0
B100: 89 | E100: =IF(ISNUMBER($D$6),D100*$D$6,#REF!*D100) -> 0
B101: 90 | E101: =IF(ISNUMBER($D$6),D101*$D$6,#REF!*D101) -> 0
B102: 91 | E102: =IF(ISNUMBER($D$6),D102*$D$6,#REF!*D102) -> 0
B103: 92 | E103: =IF(ISNUMBER($D$6),D103*$D$6,#REF!*D103) -> 0
B104: 93 | E104: =IF(ISNUMBER($D$6),D104*$D$6,#REF!*D104) -> 0
B105: 94 | E105: =IF(ISNUMBER($D$6),D105*$D$6,#REF!*D105) -> 0
B106: 95 | E106: =IF(ISNUMBER($D$6),D106*$D$6,#REF!*D106) -> 0
B107: 96 | E107: =IF(ISNUMBER($D$6),D107*$D$6,#REF!*D107) -> 0
B108: 97 | E108: =IF(ISNUMBER($D$6),D108*$D$6,#REF!*D108) -> 0
B109: 98 | E109: =IF(ISNUMBER($D$6),D109*$D$6,#REF!*D109) -> 0
B110: 99 | E110: =IF(ISNUMBER($D$6),D110*$D$6,#REF!*D110) -> 0
B111: 100 | E111: =IF(ISNUMBER($D$6),D111*$D$6,#REF!*D111) -> 0
B112: 101 | E112: =IF(ISNUMBER($D$6),D112*$D$6,#REF!*D112) -> 0
B113: 102 | E113: =IF(ISNUMBER($D$6),D113*$D$6,#REF!*D113) -> 0
B114: 103 | E114: =IF(ISNUMBER($D$6),D114*$D$6,#REF!*D114) -> 0
B115: 104 | E115: =IF(ISNUMBER($D$6),D115*$D$6,#REF!*D115) -> 0
B116: 105 | E116: =IF(ISNUMBER($D$6),D116*$D$6,#REF!*D116) -> 0
B117: 106 | E117: =IF(ISNUMBER($D$6),D117*$D$6,#REF!*D117) -> 0
B118: 107 | E118: =IF(ISNUMBER($D$6),D118*$D$6,#REF!*D118) -> 0
B119: 108 | E119: =IF(ISNUMBER($D$6),D119*$D$6,#REF!*D119) -> 0
B120: 109 | E120: =IF(ISNUMBER($D$6),D120*$D$6,#REF!*D120) -> 0
B121: 110 | E121: =IF(ISNUMBER($D$6),D121*$D$6,#REF!*D121) -> 0
B122: 111 | E122: =IF(ISNUMBER($D$6),D122*$D$6,#REF!*D122) -> 0
B123: 112 | E123: =IF(ISNUMBER($D$6),D123*$D$6,#REF!*D123) -> 0
B124: 113 | E124: =IF(ISNUMBER($D$6),D124*$D$6,#REF!*D124) -> 0
B125: 114 | E125: =IF(ISNUMBER($D$6),D125*$D$6,#REF!*D125) -> 0
B126: 115 | E126: =IF(ISNUMBER($D$6),D126*$D$6,#REF!*D126) -> 0
B127: 116 | E127: =IF(ISNUMBER($D$6),D127*$D$6,#REF!*D127) -> 0
B128: 117 | E128: =IF(ISNUMBER($D$6),D128*$D$6,#REF!*D128) -> 0
B129: 118 | E129: =IF(ISNUMBER($D$6),D129*$D$6,#REF!*D129) -> 0
B130: 119 | E130: =IF(ISNUMBER($D$6),D130*$D$6,#REF!*D130) -> 0
B131: 120 | E131: =IF(ISNUMBER($D$6),D131*$D$6,#REF!*D131) -> 0
B132: 121 | E132: =IF(ISNUMBER($D$6),D132*$D$6,#REF!*D132) -> 0
B133: 122 | E133: =IF(ISNUMBER($D$6),D133*$D$6,#REF!*D133) -> 0
B134: 123 | E134: =IF(ISNUMBER($D$6),D134*$D$6,#REF!*D134) -> 0
B135: 124 | E135: =IF(ISNUMBER($D$6),D135*$D$6,#REF!*D135) -> 0
B136: 125 | E136: =IF(ISNUMBER($D$6),D136*$D$6,#REF!*D136) -> 0
B137: 126 | E137: =IF(ISNUMBER($D$6),D137*$D$6,#REF!*D137) -> 0
B138: 127 | E138: =IF(ISNUMBER($D$6),D138*$D$6,#REF!*D138) -> 0
B139: 128 | E139: =IF(ISNUMBER($D$6),D139*$D$6,#REF!*D139) -> 0
B140: 129 | E140: =IF(ISNUMBER($D$6),D140*$D$6,#REF!*D140) -> 0
B141: 130 | E141: =IF(ISNUMBER($D$6),D141*$D$6,#REF!*D141) -> 0
B142: =+B141+1 -> 131 | E142: =IF(ISNUMBER($D$6),D142*$D$6,#REF!*D142) -> 0
B143: 132 | E143: =IF(ISNUMBER($D$6),D143*$D$6,#REF!*D143) -> 0
B144: 133 | E144: =IF(ISNUMBER($D$6),D144*$D$6,#REF!*D144) -> 0
B145: 134 | E145: =IF(ISNUMBER($D$6),D145*$D$6,#REF!*D145) -> 0
B146: 135 | E146: =IF(ISNUMBER($D$6),D146*$D$6,#REF!*D146) -> 0
B147: 136 | E147: =IF(ISNUMBER($D$6),D147*$D$6,#REF!*D147) -> 0
B148: 137 | E148: =IF(ISNUMBER($D$6),D148*$D$6,#REF!*D148) -> 0
B149: 138 | E149: =IF(ISNUMBER($D$6),D149*$D$6,#REF!*D149) -> 0
B150: 139 | E150: =IF(ISNUMBER($D$6),D150*$D$6,#REF!*D150) -> 0
B151: 140 | E151: =IF(ISNUMBER($D$6),D151*$D$6,#REF!*D151) -> 0
B152: 141 | E152: =IF(ISNUMBER($D$6),D152*$D$6,#REF!*D152) -> 0
B153: 142 | E153: =IF(ISNUMBER($D$6),D153*$D$6,#REF!*D153) -> 0
B154: 143 | E154: =IF(ISNUMBER($D$6),D154*$D$6,#REF!*D154) -> 0
B155: 144 | E155: =IF(ISNUMBER($D$6),D155*$D$6,#REF!*D155) -> 0
B156: 145 | E156: =IF(ISNUMBER($D$6),D156*$D$6,#REF!*D156) -> 0
B157: 146 | E157: =IF(ISNUMBER($D$6),D157*$D$6,#REF!*D157) -> 0
B158: 147 | E158: =IF(ISNUMBER($D$6),D158*$D$6,#REF!*D158) -> 0
B159: 148 | E159: =IF(ISNUMBER($D$6),D159*$D$6,#REF!*D159) -> 0
B160: 149 | E160: =IF(ISNUMBER($D$6),D160*$D$6,#REF!*D160) -> 0
B161: 150 | E161: =IF(ISNUMBER($D$6),D161*$D$6,#REF!*D161) -> 0
B162: 151 | E162: =IF(ISNUMBER($D$6),D162*$D$6,#REF!*D162) -> 0
B163: 152 | E163: =IF(ISNUMBER($D$6),D163*$D$6,#REF!*D163) -> 0
B164: 153 | E164: =IF(ISNUMBER($D$6),D164*$D$6,#REF!*D164) -> 0
B165: 154 | E165: =IF(ISNUMBER($D$6),D165*$D$6,#REF!*D165) -> 0
B166: 155 | E166: =IF(ISNUMBER($D$6),D166*$D$6,#REF!*D166) -> 0
B167: 156 | E167: =IF(ISNUMBER($D$6),D167*$D$6,#REF!*D167) -> 0
B168: 157 | E168: =IF(ISNUMBER($D$6),D168*$D$6,#REF!*D168) -> 0
B169: 158 | E169: =IF(ISNUMBER($D$6),D169*$D$6,#REF!*D169) -> 0
B170: 159 | E170: =IF(ISNUMBER($D$6),D170*$D$6,#REF!*D170) -> 0
B171: 160 | E171: =IF(ISNUMBER($D$6),D171*$D$6,#REF!*D171) -> 0
B172: 161 | E172: =IF(ISNUMBER($D$6),D172*$D$6,#REF!*D172) -> 0
B173: 162 | E173: =IF(ISNUMBER($D$6),D173*$D$6,#REF!*D173) -> 0
B174: 163 | E174: =IF(ISNUMBER($D$6),D174*$D$6,#REF!*D174) -> 0
B175: 164 | E175: =IF(ISNUMBER($D$6),D175*$D$6,#REF!*D175) -> 0
B176: 165 | E176: =IF(ISNUMBER($D$6),D176*$D$6,#REF!*D176) -> 0
B177: 166 | E177: =IF(ISNUMBER($D$6),D177*$D$6,#REF!*D177) -> 0
B178: 167 | E178: =IF(ISNUMBER($D$6),D178*$D$6,#REF!*D178) -> 0
B179: 168 | E179: =IF(ISNUMBER($D$6),D179*$D$6,#REF!*D179) -> 0
B180: 169 | E180: =IF(ISNUMBER($D$6),D180*$D$6,#REF!*D180) -> 0
B181: 170 | E181: =IF(ISNUMBER($D$6),D181*$D$6,#REF!*D181) -> 0
B182: 171 | E182: =IF(ISNUMBER($D$6),D182*$D$6,#REF!*D182) -> 0
B183: 172 | E183: =IF(ISNUMBER($D$6),D183*$D$6,#REF!*D183) -> 0
B184: 173 | E184: =IF(ISNUMBER($D$6),D184*$D$6,#REF!*D184) -> 0
B185: 174 | E185: =IF(ISNUMBER($D$6),D185*$D$6,#REF!*D185) -> 0
B186: 175 | E186: =IF(ISNUMBER($D$6),D186*$D$6,#REF!*D186) -> 0
B187: 176 | E187: =IF(ISNUMBER($D$6),D187*$D$6,#REF!*D187) -> 0
B188: 177 | E188: =IF(ISNUMBER($D$6),D188*$D$6,#REF!*D188) -> 0
B189: 178 | E189: =IF(ISNUMBER($D$6),D189*$D$6,#REF!*D189) -> 0
B190: 179 | E190: =IF(ISNUMBER($D$6),D190*$D$6,#REF!*D190) -> 0
B191: 180 | E191: =IF(ISNUMBER($D$6),D191*$D$6,#REF!*D191) -> 0
B192: 181 | E192: =IF(ISNUMBER($D$6),D192*$D$6,#REF!*D192) -> 0
B193: 182 | E193: =IF(ISNUMBER($D$6),D193*$D$6,#REF!*D193) -> 0
B194: 183 | E194: =IF(ISNUMBER($D$6),D194*$D$6,#REF!*D194) -> 0
B195: 184 | E195: =IF(ISNUMBER($D$6),D195*$D$6,#REF!*D195) -> 0
B196: 185 | E196: =IF(ISNUMBER($D$6),D196*$D$6,#REF!*D196) -> 0
B197: 186 | E197: =IF(ISNUMBER($D$6),D197*$D$6,#REF!*D197) -> 0
B198: 187 | E198: =IF(ISNUMBER($D$6),D198*$D$6,#REF!*D198) -> 0
B199: 188 | E199: =IF(ISNUMBER($D$6),D199*$D$6,#REF!*D199) -> 0
B200: 189 | E200: =IF(ISNUMBER($D$6),D200*$D$6,#REF!*D200) -> 0
B201: 190 | E201: =IF(ISNUMBER($D$6),D201*$D$6,#REF!*D201) -> 0
B202: 191 | E202: =IF(ISNUMBER($D$6),D202*$D$6,#REF!*D202) -> 0
B203: 192 | E203: =IF(ISNUMBER($D$6),D203*$D$6,#REF!*D203) -> 0
B204: 193 | E204: =IF(ISNUMBER($D$6),D204*$D$6,#REF!*D204) -> 0
B205: 194 | E205: =IF(ISNUMBER($D$6),D205*$D$6,#REF!*D205) -> 0
B206: =+B205+1 -> 195 | E206: =IF(ISNUMBER($D$6),D206*$D$6,#REF!*D206) -> 0
... 805 more rows

Sheet Pontos de Monitorização6 (hidden)
B2: SISTEMAS DE QUANTIFICAÇÃO, MONITORIZAÇÃO CONTÍNUA E GESTÃO DE ENERGIA
B5: Identifique a fonte de energia: | D5: =+Economias!E77 -> 0 | E5: (t)
B6: Fator de conversão: | D6: =+Economias!E80 -> 0 | E6: ="tep/"&$E$5&"" -> tep/(t)
B8: Indique o número total de pontos a monitorizar:
B11: número do ponto de monitorização | C11: Identificação do ponto de monitorização | D11: =IF(D5="Energia elétrica","Utilização anual de "&$D$5&" (kWh/ano)","Utilização anual de "&$D$5&" (t/ano)") -> Utilização anual de 0 (t/ano) | E11: Consumo energético referente ao ano de referência (tep/ano)
B12: 1 | E12: =IF(ISNUMBER($D$6),D12*$D$6,#REF!*D12) -> 0
B13: =+B12+1 -> 2 | E13: =IF(ISNUMBER($D$6),D13*$D$6,#REF!*D13) -> 0
B14: =+B13+1 -> 3 | E14: =IF(ISNUMBER($D$6),D14*$D$6,#REF!*D14) -> 0
B15: 4 | E15: =IF(ISNUMBER($D$6),D15*$D$6,#REF!*D15) -> 0
B16: 5 | E16: =IF(ISNUMBER($D$6),D16*$D$6,#REF!*D16) -> 0
B17: 6 | E17: =IF(ISNUMBER($D$6),D17*$D$6,#REF!*D17) -> 0
B18: 7 | E18: =IF(ISNUMBER($D$6),D18*$D$6,#REF!*D18) -> 0
B19: 8 | E19: =IF(ISNUMBER($D$6),D19*$D$6,#REF!*D19) -> 0
B20: 9 | E20: =IF(ISNUMBER($D$6),D20*$D$6,#REF!*D20) -> 0
B21: 10 | E21: =IF(ISNUMBER($D$6),D21*$D$6,#REF!*D21) -> 0
B22: 11 | E22: =IF(ISNUMBER($D$6),D22*$D$6,#REF!*D22) -> 0
B23: 12 | E23: =IF(ISNUMBER($D$6),D23*$D$6,#REF!*D23) -> 0
B24: 13 | E24: =IF(ISNUMBER($D$6),D24*$D$6,#REF!*D24) -> 0
B25: 14 | E25: =IF(ISNUMBER($D$6),D25*$D$6,#REF!*D25) -> 0
B26: 15 | E26: =IF(ISNUMBER($D$6),D26*$D$6,#REF!*D26) -> 0
B27: 16 | E27: =IF(ISNUMBER($D$6),D27*$D$6,#REF!*D27) -> 0
B28: 17 | E28: =IF(ISNUMBER($D$6),D28*$D$6,#REF!*D28) -> 0
B29: 18 | E29: =IF(ISNUMBER($D$6),D29*$D$6,#REF!*D29) -> 0
B30: 19 | E30: =IF(ISNUMBER($D$6),D30*$D$6,#REF!*D30) -> 0
B31: 20 | E31: =IF(ISNUMBER($D$6),D31*$D$6,#REF!*D31) -> 0
B32: 21 | E32: =IF(ISNUMBER($D$6),D32*$D$6,#REF!*D32) -> 0
B33: 22 | E33: =IF(ISNUMBER($D$6),D33*$D$6,#REF!*D33) -> 0
B34: 23 | E34: =IF(ISNUMBER($D$6),D34*$D$6,#REF!*D34) -> 0
B35: 24 | E35: =IF(ISNUMBER($D$6),D35*$D$6,#REF!*D35) -> 0
B36: 25 | E36: =IF(ISNUMBER($D$6),D36*$D$6,#REF!*D36) -> 0
B37: 26 | E37: =IF(ISNUMBER($D$6),D37*$D$6,#REF!*D37) -> 0
B38: 27 | E38: =IF(ISNUMBER($D$6),D38*$D$6,#REF!*D38) -> 0
B39: 28 | E39: =IF(ISNUMBER($D$6),D39*$D$6,#REF!*D39) -> 0
B40: 29 | E40: =IF(ISNUMBER($D$6),D40*$D$6,#REF!*D40) -> 0
B41: 30 | E41: =IF(ISNUMBER($D$6),D41*$D$6,#REF!*D41) -> 0
B42: 31 | E42: =IF(ISNUMBER($D$6),D42*$D$6,#REF!*D42) -> 0
B43: 32 | E43: =IF(ISNUMBER($D$6),D43*$D$6,#REF!*D43) -> 0
B44: 33 | E44: =IF(ISNUMBER($D$6),D44*$D$6,#REF!*D44) -> 0
B45: 34 | E45: =IF(ISNUMBER($D$6),D45*$D$6,#REF!*D45) -> 0
B46: 35 | E46: =IF(ISNUMBER($D$6),D46*$D$6,#REF!*D46) -> 0
B47: 36 | E47: =IF(ISNUMBER($D$6),D47*$D$6,#REF!*D47) -> 0
B48: 37 | E48: =IF(ISNUMBER($D$6),D48*$D$6,#REF!*D48) -> 0
B49: 38 | E49: =IF(ISNUMBER($D$6),D49*$D$6,#REF!*D49) -> 0
B50: 39 | E50: =IF(ISNUMBER($D$6),D50*$D$6,#REF!*D50) -> 0
B51: 40 | E51: =IF(ISNUMBER($D$6),D51*$D$6,#REF!*D51) -> 0
B52: 41 | E52: =IF(ISNUMBER($D$6),D52*$D$6,#REF!*D52) -> 0
B53: 42 | E53: =IF(ISNUMBER($D$6),D53*$D$6,#REF!*D53) -> 0
B54: 43 | E54: =IF(ISNUMBER($D$6),D54*$D$6,#REF!*D54) -> 0
B55: 44 | E55: =IF(ISNUMBER($D$6),D55*$D$6,#REF!*D55) -> 0
B56: 45 | E56: =IF(ISNUMBER($D$6),D56*$D$6,#REF!*D56) -> 0
B57: 46 | E57: =IF(ISNUMBER($D$6),D57*$D$6,#REF!*D57) -> 0
B58: 47 | E58: =IF(ISNUMBER($D$6),D58*$D$6,#REF!*D58) -> 0
B59: 48 | E59: =IF(ISNUMBER($D$6),D59*$D$6,#REF!*D59) -> 0
B60: 49 | E60: =IF(ISNUMBER($D$6),D60*$D$6,#REF!*D60) -> 0
B61: 50 | E61: =IF(ISNUMBER($D$6),D61*$D$6,#REF!*D61) -> 0
B62: 51 | E62: =IF(ISNUMBER($D$6),D62*$D$6,#REF!*D62) -> 0
B63: 52 | E63: =IF(ISNUMBER($D$6),D63*$D$6,#REF!*D63) -> 0
B64: 53 | E64: =IF(ISNUMBER($D$6),D64*$D$6,#REF!*D64) -> 0
B65: 54 | E65: =IF(ISNUMBER($D$6),D65*$D$6,#REF!*D65) -> 0
B66: 55 | E66: =IF(ISNUMBER($D$6),D66*$D$6,#REF!*D66) -> 0
B67: 56 | E67: =IF(ISNUMBER($D$6),D67*$D$6,#REF!*D67) -> 0
B68: 57 | E68: =IF(ISNUMBER($D$6),D68*$D$6,#REF!*D68) -> 0
B69: 58 | E69: =IF(ISNUMBER($D$6),D69*$D$6,#REF!*D69) -> 0
B70: 59 | E70: =IF(ISNUMBER($D$6),D70*$D$6,#REF!*D70) -> 0
B71: 60 | E71: =IF(ISNUMBER($D$6),D71*$D$6,#REF!*D71) -> 0
B72: 61 | E72: =IF(ISNUMBER($D$6),D72*$D$6,#REF!*D72) -> 0
B73: 62 | E73: =IF(ISNUMBER($D$6),D73*$D$6,#REF!*D73) -> 0
B74: 63 | E74: =IF(ISNUMBER($D$6),D74*$D$6,#REF!*D74) -> 0
B75: 64 | E75: =IF(ISNUMBER($D$6),D75*$D$6,#REF!*D75) -> 0
B76: 65 | E76: =IF(ISNUMBER($D$6),D76*$D$6,#REF!*D76) -> 0
B77: 66 | E77: =IF(ISNUMBER($D$6),D77*$D$6,#REF!*D77) -> 0
B78: =+B77+1 -> 67 | E78: =IF(ISNUMBER($D$6),D78*$D$6,#REF!*D78) -> 0
B79: 68 | E79: =IF(ISNUMBER($D$6),D79*$D$6,#REF!*D79) -> 0
B80: 69 | E80: =IF(ISNUMBER($D$6),D80*$D$6,#REF!*D80) -> 0
B81: 70 | E81: =IF(ISNUMBER($D$6),D81*$D$6,#REF!*D81) -> 0
B82: 71 | E82: =IF(ISNUMBER($D$6),D82*$D$6,#REF!*D82) -> 0
B83: 72 | E83: =IF(ISNUMBER($D$6),D83*$D$6,#REF!*D83) -> 0
B84: 73 | E84: =IF(ISNUMBER($D$6),D84*$D$6,#REF!*D84) -> 0
B85: 74 | E85: =IF(ISNUMBER($D$6),D85*$D$6,#REF!*D85) -> 0
B86: 75 | E86: =IF(ISNUMBER($D$6),D86*$D$6,#REF!*D86) -> 0
B87: 76 | E87: =IF(ISNUMBER($D$6),D87*$D$6,#REF!*D87) -> 0
B88: 77 | E88: =IF(ISNUMBER($D$6),D88*$D$6,#REF!*D88) -> 0
B89: 78 | E89: =IF(ISNUMBER($D$6),D89*$D$6,#REF!*D89) -> 0
B90: 79 | E90: =IF(ISNUMBER($D$6),D90*$D$6,#REF!*D90) -> 0
B91: 80 | E91: =IF(ISNUMBER($D$6),D91*$D$6,#REF!*D91) -> 0
B92: 81 | E92: =IF(ISNUMBER($D$6),D92*$D$6,#REF!*D92) -> 0
B93: 82 | E93: =IF(ISNUMBER($D$6),D93*$D$6,#REF!*D93) -> 0
B94: 83 | E94: =IF(ISNUMBER($D$6),D94*$D$6,#REF!*D94) -> 0
B95: 84 | E95: =IF(ISNUMBER($D$6),D95*$D$6,#REF!*D95) -> 0
B96: 85 | E96: =IF(ISNUMBER($D$6),D96*$D$6,#REF!*D96) -> 0
B97: 86 | E97: =IF(ISNUMBER($D$6),D97*$D$6,#REF!*D97) -> 0
B98: 87 | E98: =IF(ISNUMBER($D$6),D98*$D$6,#REF!*D98) -> 0
B99: 88 | E99: =IF(ISNUMBER($D$6),D99*$D$6,#REF!*D99) -> 0
B100: 89 | E100: =IF(ISNUMBER($D$6),D100*$D$6,#REF!*D100) -> 0
B101: 90 | E101: =IF(ISNUMBER($D$6),D101*$D$6,#REF!*D101) -> 0
B102: 91 | E102: =IF(ISNUMBER($D$6),D102*$D$6,#REF!*D102) -> 0
B103: 92 | E103: =IF(ISNUMBER($D$6),D103*$D$6,#REF!*D103) -> 0
B104: 93 | E104: =IF(ISNUMBER($D$6),D104*$D$6,#REF!*D104) -> 0
B105: 94 | E105: =IF(ISNUMBER($D$6),D105*$D$6,#REF!*D105) -> 0
B106: 95 | E106: =IF(ISNUMBER($D$6),D106*$D$6,#REF!*D106) -> 0
B107: 96 | E107: =IF(ISNUMBER($D$6),D107*$D$6,#REF!*D107) -> 0
B108: 97 | E108: =IF(ISNUMBER($D$6),D108*$D$6,#REF!*D108) -> 0
B109: 98 | E109: =IF(ISNUMBER($D$6),D109*$D$6,#REF!*D109) -> 0
B110: 99 | E110: =IF(ISNUMBER($D$6),D110*$D$6,#REF!*D110) -> 0
B111: 100 | E111: =IF(ISNUMBER($D$6),D111*$D$6,#REF!*D111) -> 0
B112: 101 | E112: =IF(ISNUMBER($D$6),D112*$D$6,#REF!*D112) -> 0
B113: 102 | E113: =IF(ISNUMBER($D$6),D113*$D$6,#REF!*D113) -> 0
B114: 103 | E114: =IF(ISNUMBER($D$6),D114*$D$6,#REF!*D114) -> 0
B115: 104 | E115: =IF(ISNUMBER($D$6),D115*$D$6,#REF!*D115) -> 0
B116: 105 | E116: =IF(ISNUMBER($D$6),D116*$D$6,#REF!*D116) -> 0
B117: 106 | E117: =IF(ISNUMBER($D$6),D117*$D$6,#REF!*D117) -> 0
B118: 107 | E118: =IF(ISNUMBER($D$6),D118*$D$6,#REF!*D118) -> 0
B119: 108 | E119: =IF(ISNUMBER($D$6),D119*$D$6,#REF!*D119) -> 0
B120: 109 | E120: =IF(ISNUMBER($D$6),D120*$D$6,#REF!*D120) -> 0
B121: 110 | E121: =IF(ISNUMBER($D$6),D121*$D$6,#REF!*D121) -> 0
B122: 111 | E122: =IF(ISNUMBER($D$6),D122*$D$6,#REF!*D122) -> 0
B123: 112 | E123: =IF(ISNUMBER($D$6),D123*$D$6,#REF!*D123) -> 0
B124: 113 | E124: =IF(ISNUMBER($D$6),D124*$D$6,#REF!*D124) -> 0
B125: 114 | E125: =IF(ISNUMBER($D$6),D125*$D$6,#REF!*D125) -> 0
B126: 115 | E126: =IF(ISNUMBER($D$6),D126*$D$6,#REF!*D126) -> 0
B127: 116 | E127: =IF(ISNUMBER($D$6),D127*$D$6,#REF!*D127) -> 0
B128: 117 | E128: =IF(ISNUMBER($D$6),D128*$D$6,#REF!*D128) -> 0
B129: 118 | E129: =IF(ISNUMBER($D$6),D129*$D$6,#REF!*D129) -> 0
B130: 119 | E130: =IF(ISNUMBER($D$6),D130*$D$6,#REF!*D130) -> 0
B131: 120 | E131: =IF(ISNUMBER($D$6),D131*$D$6,#REF!*D131) -> 0
B132: 121 | E132: =IF(ISNUMBER($D$6),D132*$D$6,#REF!*D132) -> 0
B133: 122 | E133: =IF(ISNUMBER($D$6),D133*$D$6,#REF!*D133) -> 0
B134: 123 | E134: =IF(ISNUMBER($D$6),D134*$D$6,#REF!*D134) -> 0
B135: 124 | E135: =IF(ISNUMBER($D$6),D135*$D$6,#REF!*D135) -> 0
B136: 125 | E136: =IF(ISNUMBER($D$6),D136*$D$6,#REF!*D136) -> 0
B137: 126 | E137: =IF(ISNUMBER($D$6),D137*$D$6,#REF!*D137) -> 0
B138: 127 | E138: =IF(ISNUMBER($D$6),D138*$D$6,#REF!*D138) -> 0
B139: 128 | E139: =IF(ISNUMBER($D$6),D139*$D$6,#REF!*D139) -> 0
B140: 129 | E140: =IF(ISNUMBER($D$6),D140*$D$6,#REF!*D140) -> 0
B141: 130 | E141: =IF(ISNUMBER($D$6),D141*$D$6,#REF!*D141) -> 0
B142: =+B141+1 -> 131 | E142: =IF(ISNUMBER($D$6),D142*$D$6,#REF!*D142) -> 0
B143: 132 | E143: =IF(ISNUMBER($D$6),D143*$D$6,#REF!*D143) -> 0
B144: 133 | E144: =IF(ISNUMBER($D$6),D144*$D$6,#REF!*D144) -> 0
B145: 134 | E145: =IF(ISNUMBER($D$6),D145*$D$6,#REF!*D145) -> 0
B146: 135 | E146: =IF(ISNUMBER($D$6),D146*$D$6,#REF!*D146) -> 0
B147: 136 | E147: =IF(ISNUMBER($D$6),D147*$D$6,#REF!*D147) -> 0
B148: 137 | E148: =IF(ISNUMBER($D$6),D148*$D$6,#REF!*D148) -> 0
B149: 138 | E149: =IF(ISNUMBER($D$6),D149*$D$6,#REF!*D149) -> 0
B150: 139 | E150: =IF(ISNUMBER($D$6),D150*$D$6,#REF!*D150) -> 0
B151: 140 | E151: =IF(ISNUMBER($D$6),D151*$D$6,#REF!*D151) -> 0
B152: 141 | E152: =IF(ISNUMBER($D$6),D152*$D$6,#REF!*D152) -> 0
B153: 142 | E153: =IF(ISNUMBER($D$6),D153*$D$6,#REF!*D153) -> 0
B154: 143 | E154: =IF(ISNUMBER($D$6),D154*$D$6,#REF!*D154) -> 0
B155: 144 | E155: =IF(ISNUMBER($D$6),D155*$D$6,#REF!*D155) -> 0
B156: 145 | E156: =IF(ISNUMBER($D$6),D156*$D$6,#REF!*D156) -> 0
B157: 146 | E157: =IF(ISNUMBER($D$6),D157*$D$6,#REF!*D157) -> 0
B158: 147 | E158: =IF(ISNUMBER($D$6),D158*$D$6,#REF!*D158) -> 0
B159: 148 | E159: =IF(ISNUMBER($D$6),D159*$D$6,#REF!*D159) -> 0
B160: 149 | E160: =IF(ISNUMBER($D$6),D160*$D$6,#REF!*D160) -> 0
B161: 150 | E161: =IF(ISNUMBER($D$6),D161*$D$6,#REF!*D161) -> 0
B162: 151 | E162: =IF(ISNUMBER($D$6),D162*$D$6,#REF!*D162) -> 0
B163: 152 | E163: =IF(ISNUMBER($D$6),D163*$D$6,#REF!*D163) -> 0
B164: 153 | E164: =IF(ISNUMBER($D$6),D164*$D$6,#REF!*D164) -> 0
B165: 154 | E165: =IF(ISNUMBER($D$6),D165*$D$6,#REF!*D165) -> 0
B166: 155 | E166: =IF(ISNUMBER($D$6),D166*$D$6,#REF!*D166) -> 0
B167: 156 | E167: =IF(ISNUMBER($D$6),D167*$D$6,#REF!*D167) -> 0
B168: 157 | E168: =IF(ISNUMBER($D$6),D168*$D$6,#REF!*D168) -> 0
B169: 158 | E169: =IF(ISNUMBER($D$6),D169*$D$6,#REF!*D169) -> 0
B170: 159 | E170: =IF(ISNUMBER($D$6),D170*$D$6,#REF!*D170) -> 0
B171: 160 | E171: =IF(ISNUMBER($D$6),D171*$D$6,#REF!*D171) -> 0
B172: 161 | E172: =IF(ISNUMBER($D$6),D172*$D$6,#REF!*D172) -> 0
B173: 162 | E173: =IF(ISNUMBER($D$6),D173*$D$6,#REF!*D173) -> 0
B174: 163 | E174: =IF(ISNUMBER($D$6),D174*$D$6,#REF!*D174) -> 0
B175: 164 | E175: =IF(ISNUMBER($D$6),D175*$D$6,#REF!*D175) -> 0
B176: 165 | E176: =IF(ISNUMBER($D$6),D176*$D$6,#REF!*D176) -> 0
B177: 166 | E177: =IF(ISNUMBER($D$6),D177*$D$6,#REF!*D177) -> 0
B178: 167 | E178: =IF(ISNUMBER($D$6),D178*$D$6,#REF!*D178) -> 0
B179: 168 | E179: =IF(ISNUMBER($D$6),D179*$D$6,#REF!*D179) -> 0
B180: 169 | E180: =IF(ISNUMBER($D$6),D180*$D$6,#REF!*D180) -> 0
B181: 170 | E181: =IF(ISNUMBER($D$6),D181*$D$6,#REF!*D181) -> 0
B182: 171 | E182: =IF(ISNUMBER($D$6),D182*$D$6,#REF!*D182) -> 0
B183: 172 | E183: =IF(ISNUMBER($D$6),D183*$D$6,#REF!*D183) -> 0
B184: 173 | E184: =IF(ISNUMBER($D$6),D184*$D$6,#REF!*D184) -> 0
B185: 174 | E185: =IF(ISNUMBER($D$6),D185*$D$6,#REF!*D185) -> 0
B186: 175 | E186: =IF(ISNUMBER($D$6),D186*$D$6,#REF!*D186) -> 0
B187: 176 | E187: =IF(ISNUMBER($D$6),D187*$D$6,#REF!*D187) -> 0
B188: 177 | E188: =IF(ISNUMBER($D$6),D188*$D$6,#REF!*D188) -> 0
B189: 178 | E189: =IF(ISNUMBER($D$6),D189*$D$6,#REF!*D189) -> 0
B190: 179 | E190: =IF(ISNUMBER($D$6),D190*$D$6,#REF!*D190) -> 0
B191: 180 | E191: =IF(ISNUMBER($D$6),D191*$D$6,#REF!*D191) -> 0
B192: 181 | E192: =IF(ISNUMBER($D$6),D192*$D$6,#REF!*D192) -> 0
B193: 182 | E193: =IF(ISNUMBER($D$6),D193*$D$6,#REF!*D193) -> 0
B194: 183 | E194: =IF(ISNUMBER($D$6),D194*$D$6,#REF!*D194) -> 0
B195: 184 | E195: =IF(ISNUMBER($D$6),D195*$D$6,#REF!*D195) -> 0
B196: 185 | E196: =IF(ISNUMBER($D$6),D196*$D$6,#REF!*D196) -> 0
B197: 186 | E197: =IF(ISNUMBER($D$6),D197*$D$6,#REF!*D197) -> 0
B198: 187 | E198: =IF(ISNUMBER($D$6),D198*$D$6,#REF!*D198) -> 0
B199: 188 | E199: =IF(ISNUMBER($D$6),D199*$D$6,#REF!*D199) -> 0
B200: 189 | E200: =IF(ISNUMBER($D$6),D200*$D$6,#REF!*D200) -> 0
B201: 190 | E201: =IF(ISNUMBER($D$6),D201*$D$6,#REF!*D201) -> 0
B202: 191 | E202: =IF(ISNUMBER($D$6),D202*$D$6,#REF!*D202) -> 0
B203: 192 | E203: =IF(ISNUMBER($D$6),D203*$D$6,#REF!*D203) -> 0
B204: 193 | E204: =IF(ISNUMBER($D$6),D204*$D$6,#REF!*D204) -> 0
B205: 194 | E205: =IF(ISNUMBER($D$6),D205*$D$6,#REF!*D205) -> 0
B206: =+B205+1 -> 195 | E206: =IF(ISNUMBER($D$6),D206*$D$6,#REF!*D206) -> 0
... 805 more rows

Sheet Pontos de Monitorização7 (hidden)
B2: SISTEMAS DE QUANTIFICAÇÃO, MONITORIZAÇÃO CONTÍNUA E GESTÃO DE ENERGIA
B5: Identifique a fonte de energia: | D5: =+Economias!E91 -> 0 | E5: (t)
B6: Fator de conversão: | D6: =+Economias!E94 -> 0 | E6: ="tep/"&$E$5&"" -> tep/(t)
B8: Indique o número total de pontos a monitorizar:
B11: número do ponto de monitorização | C11: Identificação do ponto de monitorização | D11: =IF(D5="Energia elétrica","Utilização anual de "&$D$5&" (kWh/ano)","Utilização anual de "&$D$5&" (t/ano)") -> Utilização anual de 0 (t/ano) | E11: Consumo energético referente ao ano de referência (tep/ano)
B12: 1 | E12: =IF(ISNUMBER($D$6),D12*$D$6,#REF!*D12) -> 0
B13: =+B12+1 -> 2 | E13: =IF(ISNUMBER($D$6),D13*$D$6,#REF!*D13) -> 0
B14: =+B13+1 -> 3 | E14: =IF(ISNUMBER($D$6),D14*$D$6,#REF!*D14) -> 0
B15: 4 | E15: =IF(ISNUMBER($D$6),D15*$D$6,#REF!*D15) -> 0
B16: 5 | E16: =IF(ISNUMBER($D$6),D16*$D$6,#REF!*D16) -> 0
B17: 6 | E17: =IF(ISNUMBER($D$6),D17*$D$6,#REF!*D17) -> 0
B18: 7 | E18: =IF(ISNUMBER($D$6),D18*$D$6,#REF!*D18) -> 0
B19: 8 | E19: =IF(ISNUMBER($D$6),D19*$D$6,#REF!*D19) -> 0
B20: 9 | E20: =IF(ISNUMBER($D$6),D20*$D$6,#REF!*D20) -> 0
B21: 10 | E21: =IF(ISNUMBER($D$6),D21*$D$6,#REF!*D21) -> 0
B22: 11 | E22: =IF(ISNUMBER($D$6),D22*$D$6,#REF!*D22) -> 0
B23: 12 | E23: =IF(ISNUMBER($D$6),D23*$D$6,#REF!*D23) -> 0
B24: 13 | E24: =IF(ISNUMBER($D$6),D24*$D$6,#REF!*D24) -> 0
B25: 14 | E25: =IF(ISNUMBER($D$6),D25*$D$6,#REF!*D25) -> 0
B26: 15 | E26: =IF(ISNUMBER($D$6),D26*$D$6,#REF!*D26) -> 0
B27: 16 | E27: =IF(ISNUMBER($D$6),D27*$D$6,#REF!*D27) -> 0
B28: 17 | E28: =IF(ISNUMBER($D$6),D28*$D$6,#REF!*D28) -> 0
B29: 18 | E29: =IF(ISNUMBER($D$6),D29*$D$6,#REF!*D29) -> 0
B30: 19 | E30: =IF(ISNUMBER($D$6),D30*$D$6,#REF!*D30) -> 0
B31: 20 | E31: =IF(ISNUMBER($D$6),D31*$D$6,#REF!*D31) -> 0
B32: 21 | E32: =IF(ISNUMBER($D$6),D32*$D$6,#REF!*D32) -> 0
B33: 22 | E33: =IF(ISNUMBER($D$6),D33*$D$6,#REF!*D33) -> 0
B34: 23 | E34: =IF(ISNUMBER($D$6),D34*$D$6,#REF!*D34) -> 0
B35: 24 | E35: =IF(ISNUMBER($D$6),D35*$D$6,#REF!*D35) -> 0
B36: 25 | E36: =IF(ISNUMBER($D$6),D36*$D$6,#REF!*D36) -> 0
B37: 26 | E37: =IF(ISNUMBER($D$6),D37*$D$6,#REF!*D37) -> 0
B38: 27 | E38: =IF(ISNUMBER($D$6),D38*$D$6,#REF!*D38) -> 0
B39: 28 | E39: =IF(ISNUMBER($D$6),D39*$D$6,#REF!*D39) -> 0
B40: 29 | E40: =IF(ISNUMBER($D$6),D40*$D$6,#REF!*D40) -> 0
B41: 30 | E41: =IF(ISNUMBER($D$6),D41*$D$6,#REF!*D41) -> 0
B42: 31 | E42: =IF(ISNUMBER($D$6),D42*$D$6,#REF!*D42) -> 0
B43: 32 | E43: =IF(ISNUMBER($D$6),D43*$D$6,#REF!*D43) -> 0
B44: 33 | E44: =IF(ISNUMBER($D$6),D44*$D$6,#REF!*D44) -> 0
B45: 34 | E45: =IF(ISNUMBER($D$6),D45*$D$6,#REF!*D45) -> 0
B46: 35 | E46: =IF(ISNUMBER($D$6),D46*$D$6,#REF!*D46) -> 0
B47: 36 | E47: =IF(ISNUMBER($D$6),D47*$D$6,#REF!*D47) -> 0
B48: 37 | E48: =IF(ISNUMBER($D$6),D48*$D$6,#REF!*D48) -> 0
B49: 38 | E49: =IF(ISNUMBER($D$6),D49*$D$6,#REF!*D49) -> 0
B50: 39 | E50: =IF(ISNUMBER($D$6),D50*$D$6,#REF!*D50) -> 0
B51: 40 | E51: =IF(ISNUMBER($D$6),D51*$D$6,#REF!*D51) -> 0
B52: 41 | E52: =IF(ISNUMBER($D$6),D52*$D$6,#REF!*D52) -> 0
B53: 42 | E53: =IF(ISNUMBER($D$6),D53*$D$6,#REF!*D53) -> 0
B54: 43 | E54: =IF(ISNUMBER($D$6),D54*$D$6,#REF!*D54) -> 0
B55: 44 | E55: =IF(ISNUMBER($D$6),D55*$D$6,#REF!*D55) -> 0
B56: 45 | E56: =IF(ISNUMBER($D$6),D56*$D$6,#REF!*D56) -> 0
B57: 46 | E57: =IF(ISNUMBER($D$6),D57*$D$6,#REF!*D57) -> 0
B58: 47 | E58: =IF(ISNUMBER($D$6),D58*$D$6,#REF!*D58) -> 0
B59: 48 | E59: =IF(ISNUMBER($D$6),D59*$D$6,#REF!*D59) -> 0
B60: 49 | E60: =IF(ISNUMBER($D$6),D60*$D$6,#REF!*D60) -> 0
B61: 50 | E61: =IF(ISNUMBER($D$6),D61*$D$6,#REF!*D61) -> 0
B62: 51 | E62: =IF(ISNUMBER($D$6),D62*$D$6,#REF!*D62) -> 0
B63: 52 | E63: =IF(ISNUMBER($D$6),D63*$D$6,#REF!*D63) -> 0
B64: 53 | E64: =IF(ISNUMBER($D$6),D64*$D$6,#REF!*D64) -> 0
B65: 54 | E65: =IF(ISNUMBER($D$6),D65*$D$6,#REF!*D65) -> 0
B66: 55 | E66: =IF(ISNUMBER($D$6),D66*$D$6,#REF!*D66) -> 0
B67: 56 | E67: =IF(ISNUMBER($D$6),D67*$D$6,#REF!*D67) -> 0
B68: 57 | E68: =IF(ISNUMBER($D$6),D68*$D$6,#REF!*D68) -> 0
B69: 58 | E69: =IF(ISNUMBER($D$6),D69*$D$6,#REF!*D69) -> 0
B70: 59 | E70: =IF(ISNUMBER($D$6),D70*$D$6,#REF!*D70) -> 0
B71: 60 | E71: =IF(ISNUMBER($D$6),D71*$D$6,#REF!*D71) -> 0
B72: 61 | E72: =IF(ISNUMBER($D$6),D72*$D$6,#REF!*D72) -> 0
B73: 62 | E73: =IF(ISNUMBER($D$6),D73*$D$6,#REF!*D73) -> 0
B74: 63 | E74: =IF(ISNUMBER($D$6),D74*$D$6,#REF!*D74) -> 0
B75: 64 | E75: =IF(ISNUMBER($D$6),D75*$D$6,#REF!*D75) -> 0
B76: 65 | E76: =IF(ISNUMBER($D$6),D76*$D$6,#REF!*D76) -> 0
B77: 66 | E77: =IF(ISNUMBER($D$6),D77*$D$6,#REF!*D77) -> 0
B78: =+B77+1 -> 67 | E78: =IF(ISNUMBER($D$6),D78*$D$6,#REF!*D78) -> 0
B79: 68 | E79: =IF(ISNUMBER($D$6),D79*$D$6,#REF!*D79) -> 0
B80: 69 | E80: =IF(ISNUMBER($D$6),D80*$D$6,#REF!*D80) -> 0
B81: 70 | E81: =IF(ISNUMBER($D$6),D81*$D$6,#REF!*D81) -> 0
B82: 71 | E82: =IF(ISNUMBER($D$6),D82*$D$6,#REF!*D82) -> 0
B83: 72 | E83: =IF(ISNUMBER($D$6),D83*$D$6,#REF!*D83) -> 0
B84: 73 | E84: =IF(ISNUMBER($D$6),D84*$D$6,#REF!*D84) -> 0
B85: 74 | E85: =IF(ISNUMBER($D$6),D85*$D$6,#REF!*D85) -> 0
B86: 75 | E86: =IF(ISNUMBER($D$6),D86*$D$6,#REF!*D86) -> 0
B87: 76 | E87: =IF(ISNUMBER($D$6),D87*$D$6,#REF!*D87) -> 0
B88: 77 | E88: =IF(ISNUMBER($D$6),D88*$D$6,#REF!*D88) -> 0
B89: 78 | E89: =IF(ISNUMBER($D$6),D89*$D$6,#REF!*D89) -> 0
B90: 79 | E90: =IF(ISNUMBER($D$6),D90*$D$6,#REF!*D90) -> 0
B91: 80 | E91: =IF(ISNUMBER($D$6),D91*$D$6,#REF!*D91) -> 0
B92: 81 | E92: =IF(ISNUMBER($D$6),D92*$D$6,#REF!*D92) -> 0
B93: 82 | E93: =IF(ISNUMBER($D$6),D93*$D$6,#REF!*D93) -> 0
B94: 83 | E94: =IF(ISNUMBER($D$6),D94*$D$6,#REF!*D94) -> 0
B95: 84 | E95: =IF(ISNUMBER($D$6),D95*$D$6,#REF!*D95) -> 0
B96: 85 | E96: =IF(ISNUMBER($D$6),D96*$D$6,#REF!*D96) -> 0
B97: 86 | E97: =IF(ISNUMBER($D$6),D97*$D$6,#REF!*D97) -> 0
B98: 87 | E98: =IF(ISNUMBER($D$6),D98*$D$6,#REF!*D98) -> 0
B99: 88 | E99: =IF(ISNUMBER($D$6),D99*$D$6,#REF!*D99) -> 0
B100: 89 | E100: =IF(ISNUMBER($D$6),D100*$D$6,#REF!*D100) -> 0
B101: 90 | E101: =IF(ISNUMBER($D$6),D101*$D$6,#REF!*D101) -> 0
B102: 91 | E102: =IF(ISNUMBER($D$6),D102*$D$6,#REF!*D102) -> 0
B103: 92 | E103: =IF(ISNUMBER($D$6),D103*$D$6,#REF!*D103) -> 0
B104: 93 | E104: =IF(ISNUMBER($D$6),D104*$D$6,#REF!*D104) -> 0
B105: 94 | E105: =IF(ISNUMBER($D$6),D105*$D$6,#REF!*D105) -> 0
B106: 95 | E106: =IF(ISNUMBER($D$6),D106*$D$6,#REF!*D106) -> 0
B107: 96 | E107: =IF(ISNUMBER($D$6),D107*$D$6,#REF!*D107) -> 0
B108: 97 | E108: =IF(ISNUMBER($D$6),D108*$D$6,#REF!*D108) -> 0
B109: 98 | E109: =IF(ISNUMBER($D$6),D109*$D$6,#REF!*D109) -> 0
B110: 99 | E110: =IF(ISNUMBER($D$6),D110*$D$6,#REF!*D110) -> 0
B111: 100 | E111: =IF(ISNUMBER($D$6),D111*$D$6,#REF!*D111) -> 0
B112: 101 | E112: =IF(ISNUMBER($D$6),D112*$D$6,#REF!*D112) -> 0
B113: 102 | E113: =IF(ISNUMBER($D$6),D113*$D$6,#REF!*D113) -> 0
B114: 103 | E114: =IF(ISNUMBER($D$6),D114*$D$6,#REF!*D114) -> 0
B115: 104 | E115: =IF(ISNUMBER($D$6),D115*$D$6,#REF!*D115) -> 0
B116: 105 | E116: =IF(ISNUMBER($D$6),D116*$D$6,#REF!*D116) -> 0
B117: 106 | E117: =IF(ISNUMBER($D$6),D117*$D$6,#REF!*D117) -> 0
B118: 107 | E118: =IF(ISNUMBER($D$6),D118*$D$6,#REF!*D118) -> 0
B119: 108 | E119: =IF(ISNUMBER($D$6),D119*$D$6,#REF!*D119) -> 0
B120: 109 | E120: =IF(ISNUMBER($D$6),D120*$D$6,#REF!*D120) -> 0
B121: 110 | E121: =IF(ISNUMBER($D$6),D121*$D$6,#REF!*D121) -> 0
B122: 111 | E122: =IF(ISNUMBER($D$6),D122*$D$6,#REF!*D122) -> 0
B123: 112 | E123: =IF(ISNUMBER($D$6),D123*$D$6,#REF!*D123) -> 0
B124: 113 | E124: =IF(ISNUMBER($D$6),D124*$D$6,#REF!*D124) -> 0
B125: 114 | E125: =IF(ISNUMBER($D$6),D125*$D$6,#REF!*D125) -> 0
B126: 115 | E126: =IF(ISNUMBER($D$6),D126*$D$6,#REF!*D126) -> 0
B127: 116 | E127: =IF(ISNUMBER($D$6),D127*$D$6,#REF!*D127) -> 0
B128: 117 | E128: =IF(ISNUMBER($D$6),D128*$D$6,#REF!*D128) -> 0
B129: 118 | E129: =IF(ISNUMBER($D$6),D129*$D$6,#REF!*D129) -> 0
B130: 119 | E130: =IF(ISNUMBER($D$6),D130*$D$6,#REF!*D130) -> 0
B131: 120 | E131: =IF(ISNUMBER($D$6),D131*$D$6,#REF!*D131) -> 0
B132: 121 | E132: =IF(ISNUMBER($D$6),D132*$D$6,#REF!*D132) -> 0
B133: 122 | E133: =IF(ISNUMBER($D$6),D133*$D$6,#REF!*D133) -> 0
B134: 123 | E134: =IF(ISNUMBER($D$6),D134*$D$6,#REF!*D134) -> 0
B135: 124 | E135: =IF(ISNUMBER($D$6),D135*$D$6,#REF!*D135) -> 0
B136: 125 | E136: =IF(ISNUMBER($D$6),D136*$D$6,#REF!*D136) -> 0
B137: 126 | E137: =IF(ISNUMBER($D$6),D137*$D$6,#REF!*D137) -> 0
B138: 127 | E138: =IF(ISNUMBER($D$6),D138*$D$6,#REF!*D138) -> 0
B139: 128 | E139: =IF(ISNUMBER($D$6),D139*$D$6,#REF!*D139) -> 0
B140: 129 | E140: =IF(ISNUMBER($D$6),D140*$D$6,#REF!*D140) -> 0
B141: 130 | E141: =IF(ISNUMBER($D$6),D141*$D$6,#REF!*D141) -> 0
B142: =+B141+1 -> 131 | E142: =IF(ISNUMBER($D$6),D142*$D$6,#REF!*D142) -> 0
B143: 132 | E143: =IF(ISNUMBER($D$6),D143*$D$6,#REF!*D143) -> 0
B144: 133 | E144: =IF(ISNUMBER($D$6),D144*$D$6,#REF!*D144) -> 0
B145: 134 | E145: =IF(ISNUMBER($D$6),D145*$D$6,#REF!*D145) -> 0
B146: 135 | E146: =IF(ISNUMBER($D$6),D146*$D$6,#REF!*D146) -> 0
B147: 136 | E147: =IF(ISNUMBER($D$6),D147*$D$6,#REF!*D147) -> 0
B148: 137 | E148: =IF(ISNUMBER($D$6),D148*$D$6,#REF!*D148) -> 0
B149: 138 | E149: =IF(ISNUMBER($D$6),D149*$D$6,#REF!*D149) -> 0
B150: 139 | E150: =IF(ISNUMBER($D$6),D150*$D$6,#REF!*D150) -> 0
B151: 140 | E151: =IF(ISNUMBER($D$6),D151*$D$6,#REF!*D151) -> 0
B152: 141 | E152: =IF(ISNUMBER($D$6),D152*$D$6,#REF!*D152) -> 0
B153: 142 | E153: =IF(ISNUMBER($D$6),D153*$D$6,#REF!*D153) -> 0
B154: 143 | E154: =IF(ISNUMBER($D$6),D154*$D$6,#REF!*D154) -> 0
B155: 144 | E155: =IF(ISNUMBER($D$6),D155*$D$6,#REF!*D155) -> 0
B156: 145 | E156: =IF(ISNUMBER($D$6),D156*$D$6,#REF!*D156) -> 0
B157: 146 | E157: =IF(ISNUMBER($D$6),D157*$D$6,#REF!*D157) -> 0
B158: 147 | E158: =IF(ISNUMBER($D$6),D158*$D$6,#REF!*D158) -> 0
B159: 148 | E159: =IF(ISNUMBER($D$6),D159*$D$6,#REF!*D159) -> 0
B160: 149 | E160: =IF(ISNUMBER($D$6),D160*$D$6,#REF!*D160) -> 0
B161: 150 | E161: =IF(ISNUMBER($D$6),D161*$D$6,#REF!*D161) -> 0
B162: 151 | E162: =IF(ISNUMBER($D$6),D162*$D$6,#REF!*D162) -> 0
B163: 152 | E163: =IF(ISNUMBER($D$6),D163*$D$6,#REF!*D163) -> 0
B164: 153 | E164: =IF(ISNUMBER($D$6),D164*$D$6,#REF!*D164) -> 0
B165: 154 | E165: =IF(ISNUMBER($D$6),D165*$D$6,#REF!*D165) -> 0
B166: 155 | E166: =IF(ISNUMBER($D$6),D166*$D$6,#REF!*D166) -> 0
B167: 156 | E167: =IF(ISNUMBER($D$6),D167*$D$6,#REF!*D167) -> 0
B168: 157 | E168: =IF(ISNUMBER($D$6),D168*$D$6,#REF!*D168) -> 0
B169: 158 | E169: =IF(ISNUMBER($D$6),D169*$D$6,#REF!*D169) -> 0
B170: 159 | E170: =IF(ISNUMBER($D$6),D170*$D$6,#REF!*D170) -> 0
B171: 160 | E171: =IF(ISNUMBER($D$6),D171*$D$6,#REF!*D171) -> 0
B172: 161 | E172: =IF(ISNUMBER($D$6),D172*$D$6,#REF!*D172) -> 0
B173: 162 | E173: =IF(ISNUMBER($D$6),D173*$D$6,#REF!*D173) -> 0
B174: 163 | E174: =IF(ISNUMBER($D$6),D174*$D$6,#REF!*D174) -> 0
B175: 164 | E175: =IF(ISNUMBER($D$6),D175*$D$6,#REF!*D175) -> 0
B176: 165 | E176: =IF(ISNUMBER($D$6),D176*$D$6,#REF!*D176) -> 0
B177: 166 | E177: =IF(ISNUMBER($D$6),D177*$D$6,#REF!*D177) -> 0
B178: 167 | E178: =IF(ISNUMBER($D$6),D178*$D$6,#REF!*D178) -> 0
B179: 168 | E179: =IF(ISNUMBER($D$6),D179*$D$6,#REF!*D179) -> 0
B180: 169 | E180: =IF(ISNUMBER($D$6),D180*$D$6,#REF!*D180) -> 0
B181: 170 | E181: =IF(ISNUMBER($D$6),D181*$D$6,#REF!*D181) -> 0
B182: 171 | E182: =IF(ISNUMBER($D$6),D182*$D$6,#REF!*D182) -> 0
B183: 172 | E183: =IF(ISNUMBER($D$6),D183*$D$6,#REF!*D183) -> 0
B184: 173 | E184: =IF(ISNUMBER($D$6),D184*$D$6,#REF!*D184) -> 0
B185: 174 | E185: =IF(ISNUMBER($D$6),D185*$D$6,#REF!*D185) -> 0
B186: 175 | E186: =IF(ISNUMBER($D$6),D186*$D$6,#REF!*D186) -> 0
B187: 176 | E187: =IF(ISNUMBER($D$6),D187*$D$6,#REF!*D187) -> 0
B188: 177 | E188: =IF(ISNUMBER($D$6),D188*$D$6,#REF!*D188) -> 0
B189: 178 | E189: =IF(ISNUMBER($D$6),D189*$D$6,#REF!*D189) -> 0
B190: 179 | E190: =IF(ISNUMBER($D$6),D190*$D$6,#REF!*D190) -> 0
B191: 180 | E191: =IF(ISNUMBER($D$6),D191*$D$6,#REF!*D191) -> 0
B192: 181 | E192: =IF(ISNUMBER($D$6),D192*$D$6,#REF!*D192) -> 0
B193: 182 | E193: =IF(ISNUMBER($D$6),D193*$D$6,#REF!*D193) -> 0
B194: 183 | E194: =IF(ISNUMBER($D$6),D194*$D$6,#REF!*D194) -> 0
B195: 184 | E195: =IF(ISNUMBER($D$6),D195*$D$6,#REF!*D195) -> 0
B196: 185 | E196: =IF(ISNUMBER($D$6),D196*$D$6,#REF!*D196) -> 0
B197: 186 | E197: =IF(ISNUMBER($D$6),D197*$D$6,#REF!*D197) -> 0
B198: 187 | E198: =IF(ISNUMBER($D$6),D198*$D$6,#REF!*D198) -> 0
B199: 188 | E199: =IF(ISNUMBER($D$6),D199*$D$6,#REF!*D199) -> 0
B200: 189 | E200: =IF(ISNUMBER($D$6),D200*$D$6,#REF!*D200) -> 0
B201: 190 | E201: =IF(ISNUMBER($D$6),D201*$D$6,#REF!*D201) -> 0
B202: 191 | E202: =IF(ISNUMBER($D$6),D202*$D$6,#REF!*D202) -> 0
B203: 192 | E203: =IF(ISNUMBER($D$6),D203*$D$6,#REF!*D203) -> 0
B204: 193 | E204: =IF(ISNUMBER($D$6),D204*$D$6,#REF!*D204) -> 0
B205: 194 | E205: =IF(ISNUMBER($D$6),D205*$D$6,#REF!*D205) -> 0
B206: =+B205+1 -> 195 | E206: =IF(ISNUMBER($D$6),D206*$D$6,#REF!*D206) -> 0
... 805 more rows
